Workbook

Sheet Overview
B2: ECDS Activity & Performance
B4: This analysis is designed to support the Monthly A&E Attendances and Emergency Admissions publication, adding more context to the types of attendances seen each month. The Monthly Publication can be found on the link below:
B5: https://www.england.nhs.uk/statistics/statistical-work-areas/ae-waiting-times-and-activity/
B7: Data presented here is 12hrs from arrival performance by month for the Financial Year, based on a subset of Type 1 & 2 A&E providers who have the required level of completion for the given month. The providers included in the cohorts and each breakdown may differ each month, but each has undergone checks to ensure they are representative of England activity as a whole.
B8: Type 1 departments are major emergency departments that are consultant-led and open 24 hours a day. They deal with the most acute cases.
B9: Type 2 departments are similar to Type 1 in that they are consultant-led, however they specialise in a single specialty, such as children or opthamology.
B11: Contents
B12: Financial Year: 2023 - 2024
B13: Financial Year: 2024 - 2025
B15: For further information about these published statistics, please contact us at:
B17: Operational Insight (Urgent and Emergency Care)
B18: NHS England
B19: A6.08, Wellington Place
B20: LEEDS LS1 4AP
B22: england.aedata@nhs.net

Sheet FY 23-24
C2: Title: | D2: Proportion of Type 1 and 2 Attendances Where the Patient Spent Over 12 Hours in Department
C3: Summary: | D3: The proportion of Type 1 and 2 Attendances where the patient spent over 12 hours in department by trust, for the financial year 2023/2024.
C5: Period: | D5: April 2023 to March 2024
C6: Source: | D6: ECDS - NHS England
C7: Basis | D7: Provider Type 1 & 2
C8: Published: | D8: 15th May 2025
C9: Data Extracted: | D9: 1st May 2025
C10: Revised: | D10: N/A
C11: Status: | D11: Published (Final) - Official Statistics in development
C12: Contact: | D12: Kerry Evert - england.aedata@nhs.net
C14: Provider Level Data
C16: Region | D16: ICB | E16: Org Code | F16: Provider | G16: 2023-04-01 | H16: 2023-05-01 | I16: 2023-06-01 | J16: 2023-07-01 | K16: 2023-08-01 | L16: 2023-09-01 | M16: 2023-10-01 | N16: 2023-11-01 | O16: 2023-12-01 | P16: 2024-01-01 | Q16: 2024-02-01 | R16: 2024-03-01 | S16: 2023/24
C17: East of England | D17: NHS Bedfordshire, Luton and Milton Keynes ICB | E17: RC9 | F17: Bedfordshire Hospitals NHS Foundation Trust | G17: 0.0243 | H17: 0.0353 | I17: 0.0421 | J17: 0.0292 | K17: 0.0313 | L17: 0.0417 | M17: 0.0445 | N17: 0.0519 | O17: 0.0656 | P17: 0.0712 | Q17: 0.062 | R17: 0.0569 | S17: 0.04651842095
C18: East of England | D18: NHS Cambridgeshire and Peterborough ICB | E18: RGT | F18: Cambridge University Hospitals NHS Foundation Trust | G18: 0.1244 | H18: 0.067 | I18: 0.0938 | J18: 0.0512 | K18: 0.1039 | L18: 0.0779 | M18: 0.1405 | N18: 0.1302 | O18: 0.1407 | P18: 0.1587 | Q18: 0.1688 | R18: 0.1226 | S18: 0.1154960584
C19: East of England | D19: NHS Hertfordshire and West Essex ICB | E19: RWH | F19: East and North Hertfordshire NHS Trust | G19: 0.1273 | H19: 0.138 | I19: 0.1324 | J19: 0.0934 | K19: 0.127 | L19: 0.1241 | M19: 0.13 | N19: 0.1321 | O19: 0.1509 | P19: 0.1506 | Q19: 0.1394 | R19: 0.1104 | S19: 0.1297394984
C20: East of England | D20: NHS Suffolk and North East Essex ICB | E20: RDE | F20: East Suffolk and North Essex NHS Foundation Trust | G20: 0.0673 | H20: 0.0694 | I20: 0.0855 | J20: 0.033 | K20: 0.0951 | L20: 0.0605 | M20: 0.1005 | N20: 0.0956 | O20: 0.0996 | P20: 0.1196 | Q20: 0.1275 | R20: 0.0865 | S20: 0.08666760507
C21: East of England | D21: NHS Norfolk and Waveney ICB | E21: RGP | F21: James Paget University Hospitals NHS Foundation Trust | G21: 0.0637 | H21: 0.0724 | I21: 0.0526 | J21: 0.0393 | K21: 0.0773 | L21: 0.0863 | M21: 0.0926 | N21: 0.0675 | O21: 0.0797 | P21: 0.0998 | Q21: 0.0853 | R21: 0.0848 | S21: 0.07480227385
C22: East of England | D22: NHS Mid and South Essex ICB | E22: RAJ | F22: Mid and South Essex NHS Foundation Trust | G22: 0.0702 | H22: 0.0658 | I22: 0.0624 | J22: 0.0595 | K22: 0.0652 | L22: 0.0709 | M22: 0.1023 | N22: 0.0951 | O22: 0.0959 | P22: 0.0996 | Q22: 0.0831 | R22: 0.083 | S22: 0.07954797644
C23: East of England | D23: NHS Bedfordshire, Luton and Milton Keynes ICB | E23: RD8 | F23: Milton Keynes University Hospital NHS Foundation Trust | G23: 0.07 | H23: 0.0635 | I23: 0.0599 | J23: 0.0686 | K23: 0.0712 | L23: 0.0719 | M23: 0.0533 | N23: 0.0498 | O23: 0.0728 | P23: 0.0831 | Q23: 0.0639 | R23: 0.0467 | S23: 0.06434393353
C24: East of England | D24: NHS Norfolk and Waveney ICB | E24: RM1 | F24: Norfolk and Norwich University Hospitals NHS Foundation Trust | G24: 0.0777 | H24: 0.0805 | I24: 0.073 | J24: 0.0804 | K24: 0.0896 | L24: 0.0759 | M24: 0.1218 | N24: 0.0663 | O24: 0.0307 | P24: 0.05 | Q24: 0.0604 | R24: 0.043 | S24: 0.07023265767
C25: East of England | D25: NHS Cambridgeshire and Peterborough ICB | E25: RGN | F25: North West Anglia NHS Foundation Trust | G25: 0.1269 | H25: 0.1157 | I25: 0.1164 | J25: 0.1022 | K25: 0.1088 | L25: 0.1137 | M25: 0.1332 | N25: 0.1494 | O25: 0.1432 | P25: 0.146 | Q25: 0.1366 | R25: 0.1159 | S25: 0.1257826087
C26: East of England | D26: NHS Hertfordshire and West Essex ICB | E26: RQW | F26: The Princess Alexandra Hospital NHS Trust | G26: 0.0651 | H26: 0.0957 | I26: 0.0779 | J26: 0.0986 | K26: 0.0901 | L26: 0.1378 | M26: 0.1709 | N26: 0.127 | O26: 0.1119 | P26: 0.1348 | Q26: 0.1305 | R26: 0.0824 | S26: 0.1087454077
C27: East of England | D27: NHS Norfolk and Waveney ICB | E27: RCX | F27: The Queen Elizabeth Hospital, King's Lynn, NHS Foundation Trust | G27: 0.0836 | H27: 0.1217 | I27: 0.108 | J27: 0.0818 | K27: 0.1119 | L27: 0.1252 | M27: 0.129 | N27: 0.1337 | O27: 0.1368 | P27: 0.1903 | Q27: 0.148 | R27: 0.1399 | S27: 0.1257024858
C28: East of England | D28: NHS Hertfordshire and West Essex ICB | E28: RWG | F28: West Hertfordshire Hospitals Teaching NHS Trust | G28: 0.0567 | H28: 0.0467 | I28: 0.0564 | J28: 0.0832 | K28: 0.1065 | L28: 0.0871 | M28: 0.1128 | N28: 0.1235 | O28: 0.1438 | P28: 0.1467 | Q28: 0.113 | R28: 0.094 | S28: 0.09778378555
C29: East of England | D29: NHS Suffolk and North East Essex ICB | E29: RGR | F29: West Suffolk NHS Foundation Trust | G29: 0.0335 | H29: 0.0522 | I29: 0.0312 | J29: 0.0455 | K29: 0.0865 | L29: 0.0951 | M29: 0.1408 | N29: 0.114 | O29: 0.1404 | P29: 0.1631 | Q29: 0.1122 | R29: 0.0843 | S29: 0.09182100595
C30: London | D30: NHS North East London ICB | E30: RF4 | F30: Barking, Havering and Redbridge University Hospitals NHS Trust | G30: 0.1757 | H30: 0.2057 | I30: 0.1763 | J30: 0.1299 | K30: 0.1624 | L30: 0.1654 | M30: 0.1715 | N30: 0.1709 | O30: 0.1809 | P30: 0.1709 | Q30: 0.1614 | R30: 0.1866 | S30: 0.171498021
C31: London | D31: NHS North East London ICB | E31: R1H | F31: Barts Health NHS Trust | G31: 0.085 | H31: 0.1046 | I31: 0.0938 | J31: 0.0801 | K31: 0.1129 | L31: 0.1219 | M31: 0.1565 | N31: 0.1669 | O31: 0.1527 | P31: 0.157 | Q31: 0.1597 | R31: 0.1596 | S31: 0.129945308
C32: London | D32: NHS North West London ICB | E32: RQM | F32: Chelsea and Westminster Hospital NHS Foundation Trust | G32: 0.0519 | H32: 0.0361 | I32: 0.0497 | J32: 0.0345 | K32: 0.0308 | L32: 0.0419 | M32: 0.064 | N32: 0.0478 | O32: 0.0419 | P32: 0.0533 | Q32: 0.0527 | R32: 0.0428 | S32: 0.04565310493
C33: London | D33: NHS South West London ICB | E33: RJ6 | F33: Croydon Health Services NHS Trust | G33: 0.0829 | H33: 0.0903 | I33: 0.0998 | J33: 0.0775 | K33: 0.0923 | L33: 0.093 | M33: 0.0979 | N33: 0.1028 | O33: 0.1087 | P33: 0.1111 | Q33: 0.1097 | R33: 0.1062 | S33: 0.09785000066
C34: London | D34: NHS South West London ICB | E34: RVR | F34: Epsom and St Helier University Hospitals NHS Trust | G34: 0.1214 | H34: 0.0992 | I34: 0.1293 | J34: 0.1341 | K34: 0.141 | L34: 0.133 | M34: 0.1346 | N34: 0.1536 | O34: 0.1547 | P34: 0.163 | Q34: 0.1658 | R34: 0.1479 | S34: 0.1398710661
C35: London | D35: NHS South East London ICB | E35: RJ1 | F35: Guy's and St Thomas' NHS Foundation Trust | G35: 0.0114 | H35: 0.0102 | I35: 0.013 | J35: 0.0116 | K35: 0.0104 | L35: 0.0116 | M35: 0.0211 | N35: 0.017 | O35: 0.0181 | P35: 0.0122 | Q35: 0.0176 | R35: 0.0194 | S35: 0.01428976266
C36: London | D36: NHS North East London ICB | E36: RQX | F36: Homerton University Hospital NHS Foundation Trust | G36: 0.0325 | H36: 0.0469 | I36: 0.0481 | J36: 0.0586 | K36: 0.0388 | L36: 0.0503 | M36: 0.0419 | N36: 0.0368 | O36: 0.0503 | P36: 0.0437 | Q36: 0.0488 | R36: 0.0502 | S36: 0.04571913558
C37: London | D37: NHS North West London ICB | E37: RYJ | F37: Imperial College Healthcare NHS Trust | G37: 0.0485 | H37: 0.0434 | I37: 0.0383 | J37: 0.0287 | K37: 0.0438 | L37: 0.0535 | M37: 0.0471 | N37: 0.0704 | O37: 0.0634 | P37: 0.0539 | Q37: 0.04 | R37: 0.043 | S37: 0.04705138211
C38: London | D38: NHS South East London ICB | E38: RJZ | F38: King's College Hospital NHS Foundation Trust | G38: 0.146 | H38: 0.1396 | I38: 0.1035 | J38: 0.1146 | K38: 0.1453 | L38: 0.1525 | M38: 0.187 | N38: 0.1825 | O38: 0.1878 | P38: 0.1783 | Q38: 0.1521 | R38: 0.1481 | S38: 0.1531069863
C39: London | D39: NHS South West London ICB | E39: RAX | F39: Kingston Hospital NHS Foundation Trust | G39: 0.1394 | H39: 0.1742 | I39: 0.1162 | J39: 0.0941 | K39: 0.1158 | L39: 0.1517 | M39: 0.1498 | N39: 0.1335 | O39: 0.1486 | P39: 0.1634 | Q39: 0.1493 | R39: 0.1408 | S39: 0.1399281489
C40: London | D40: NHS South East London ICB | E40: RJ2 | F40: Lewisham and Greenwich NHS Trust | G40: 0.1069 | H40: 0.0984 | I40: 0.0966 | J40: 0.0774 | K40: 0.0835 | L40: 0.119 | M40: 0.1298 | N40: 0.1468 | O40: 0.1538 | P40: 0.1649 | Q40: 0.17 | R40: 0.1569 | S40: 0.1260054691
C41: London | D41: NHS North West London ICB | E41: R1K | F41: London North West University Healthcare NHS Trust | G41: 0.0986 | H41: 0.0914 | I41: 0.1057 | J41: 0.09 | K41: 0.1677 | L41: 0.1804 | M41: 0.1777 | N41: 0.207 | O41: 0.2014 | P41: 0.1972 | Q41: 0.1347 | R41: 0.1198 | S41: 0.1475453662
C42: London | D42: NHS North Central London ICB | E42: RAL | F42: Royal Free London NHS Foundation Trust | G42: 0.1212 | H42: 0.1393 | I42: 0.1209 | J42: 0.0945 | K42: 0.1353 | L42: 0.1424 | M42: 0.154 | N42: 0.1497 | O42: 0.1572 | P42: 0.1584 | Q42: 0.1397 | R42: 0.1404 | S42: 0.138316969
C43: London | D43: NHS South West London ICB | E43: RJ7 | F43: St George's University Hospitals NHS Foundation Trust | G43: 0.0909 | H43: 0.0996 | I43: 0.1026 | J43: 0.0877 | K43: 0.0908 | L43: 0.1168 | M43: 0.111 | N43: 0.1537 | O43: 0.1184 | P43: 0.0958 | Q43: 0.1195 | R43: 0.0773 | S43: 0.1052542955
C44: London | D44: NHS North West London ICB | E44: RAS | F44: The Hillingdon Hospitals NHS Foundation Trust | G44: 0.0545 | H44: 0.0837 | I44: 0.0643 | J44: 0.0949 | K44: 0.1123 | L44: 0.1213 | M44: 0.1565 | N44: 0.1963 | O44: 0.2282 | P44: 0.2072 | Q44: 0.1535 | R44: 0.1293 | S44: 0.1427597656
C45: London | D45: NHS North Central London ICB | E45: RRV | F45: University College London Hospitals NHS Foundation Trust | G45: 0.0184 | H45: 0.0199 | I45: 0.0221 | J45: 0.014 | K45: 0.0217 | L45: 0.0233 | M45: 0.0191 | N45: 0.028 | O45: 0.0382 | P45: 0.0305 | Q45: 0.0341 | R45: 0.0278 | S45: 0.02479149332
C46: London | D46: NHS North Central London ICB | E46: RKE | F46: Whittington Health NHS Trust | G46: 0.0863 | H46: 0.1036 | I46: 0.091 | J46: 0.0951 | K46: 0.069 | L46: 0.0916 | M46: 0.1235 | N46: 0.1468 | O46: 0.1299 | P46: 0.1241 | Q46: 0.0924 | R46: 0.1004 | S46: 0.104604155
C47: Midlands | D47: NHS Birmingham and Solihull ICB | E47: RQ3 | F47: Birmingham Women's and Children's NHS Foundation Trust | G47: 0.0013 | H47: 0.0023 | I47: 0.0018 | J47: 0.0006 | K47: 0.0008 | L47: 0.0027 | M47: 0.01 | N47: 0.0179 | O47: 0.0287 | P47: 0.0063 | Q47: 0.0056 | R47: 0.0074 | S47: 0.007679521277
C48: Midlands | D48: NHS Derby and Derbyshire ICB | E48: RFS | F48: Chesterfield Royal Hospital NHS Foundation Trust | G48: 0.0319 | H48: 0.02 | I48: 0.013 | J48: 0.0056 | K48: 0.0083 | L48: 0.0101 | M48: 0.0176 | N48: 0.0225 | O48: 0.0591 | P48: 0.0576 | Q48: 0.061 | R48: 0.0478 | S48: 0.02950348095
C49: Midlands | D49: NHS Coventry and Warwickshire ICB | E49: RLT | F49: George Eliot Hospital NHS Trust | G49: 0.0882 | H49: 0.0936 | I49: 0.0885 | J49: 0.0826 | K49: 0.1269 | L49: 0.1065 | M49: 0.1234 | N49: 0.1214 | O49: 0.1128 | P49: 0.1534 | Q49: 0.14 | R49: 0.1209 | S49: 0.1136357785
C50: Midlands | D50: NHS Northamptonshire ICB | E50: RNQ | F50: Kettering General Hospital NHS Foundation Trust | G50: 0.1018 | H50: 0.094 | I50: 0.0964 | J50: 0.1007 | K50: 0.0797 | L50: 0.1022 | M50: 0.1196 | N50: 0.1278 | O50: 0.119 | P50: 0.1439 | Q50: 0.1068 | R50: 0.1112 | S50: 0.108939264
C51: Midlands | D51: NHS Northamptonshire ICB | E51: RNS | F51: Northampton General Hospital NHS Trust | G51: 0.1586 | H51: 0.1583 | I51: 0.1408 | J51: 0.122 | K51: 0.173 | L51: 0.1686 | M51: 0.1735 | N51: 0.1739 | O51: 0.2056 | P51: 0.2011 | Q51: 0.1672 | R51: 0.1407 | S51: 0.1645503818
C52: Midlands | D52: NHS Nottingham and Nottinghamshire ICB | E52: RX1 | F52: Nottingham University Hospitals NHS Trust | G52: 0.0839 | H52: 0.133 | I52: 0.1115 | J52: 0.1102 | K52: 0.1268 | L52: 0.1321 | M52: 0.1501 | N52: 0.1441 | O52: 0.1458 | P52: 0.1526 | Q52: 0.1504 | R52: 0.1098 | S52: 0.1292964834
C53: Midlands | D53: NHS Black Country ICB | E53: RXK | F53: Sandwell and West Birmingham Hospitals NHS Trust | G53: 0.0308 | H53: 0.0375 | I53: 0.0389 | J53: 0.0581 | K53: 0.077 | L53: 0.0765 | M53: 0.1192 | N53: 0.1012 | O53: 0.1255 | P53: 0.1212 | Q53: 0.1029 | R53: 0.1046 | S53: 0.08065334381
C54: Midlands | D54: NHS Nottingham and Nottinghamshire ICB | E54: RK5 | F54: Sherwood Forest Hospitals NHS Foundation Trust | G54: 0.042 | H54: 0.0334 | I54: 0.0383 | J54: 0.0207 | K54: 0.0207 | L54: 0.037 | M54: 0.0349 | N54: 0.0624 | O54: 0.0801 | P54: 0.072 | Q54: 0.0794 | R54: 0.0482 | S54: 0.04722412196
C55: Midlands | D55: NHS Coventry and Warwickshire ICB | E55: RJC | F55: South Warwickshire NHS Foundation Trust | G55: 0.0037 | H55: 0.0098 | I55: 0.0068 | J55: 0.0027 | K55: 0.004 | L55: 0.0141 | M55: 0.0053 | N55: 0.012 | O55: 0.0257 | P55: 0.0287 | Q55: 0.0206 | R55: 0.0109 | S55: 0.01220700452
C56: Midlands | D56: NHS Black Country ICB | E56: RNA | F56: The Dudley Group NHS Foundation Trust | G56: 0.0675 | H56: 0.0814 | I56: 0.0962 | J56: 0.0935 | K56: 0.1245 | L56: 0.1048 | M56: 0.1187 | N56: 0.1251 | O56: 0.1255 | P56: 0.1442 | Q56: 0.104 | R56: 0.1147 | S56: 0.1084946314
C57: Midlands | D57: NHS Black Country ICB | E57: RL4 | F57: The Royal Wolverhampton NHS Trust | G57: 0.0444 | H57: 0.0662 | I57: 0.0601 | J57: 0.0648 | K57: 0.0619 | L57: 0.0811 | M57: 0.0935 | N57: 0.1117 | O57: 0.0876 | P57: 0.1159 | Q57: 0.1089 | R57: 0.0973 | S57: 0.08291155257
C58: Midlands | D58: NHS Shropshire, Telford and Wrekin ICB | E58: RXW | F58: The Shrewsbury and Telford Hospital NHS Trust | G58: 0.1908 | H58: 0.1865 | I58: 0.1807 | J58: 0.2088 | K58: 0.2233 | L58: 0.2184 | M58: 0.2286 | N58: 0.2476 | O58: 0.2273 | P58: 0.2544 | Q58: 0.2518 | R58: 0.227 | S58: 0.219966738
C59: Midlands | D59: NHS Lincolnshire ICB | E59: RWD | F59: United Lincolnshire Hospitals NHS Trust | G59: 0.1281 | H59: 0.1416 | I59: 0.147 | J59: 0.1563 | K59: 0.2132 | L59: 0.2057 | M59: 0.2266 | N59: 0.1811 | O59: 0.2167 | P59: 0.2451 | Q59: 0.2369 | R59: 0.2158 | S59: 0.1870108742
C60: Midlands | D60: NHS Birmingham and Solihull ICB | E60: RRK | F60: University Hospitals Birmingham NHS Foundation Trust | G60: 0.1267 | H60: 0.1262 | I60: 0.128 | J60: 0.1381 | K60: 0.1471 | L60: 0.1664 | M60: 0.1736 | N60: 0.1697 | O60: 0.1669 | P60: 0.185 | Q60: 0.1591 | R60: 0.1561 | S60: 0.1537185986
C61: Midlands | D61: NHS Coventry and Warwickshire ICB | E61: RKB | F61: University Hospitals Coventry and Warwickshire NHS Trust | G61: 0.0594 | H61: 0.0693 | I61: 0.0765 | J61: 0.0976 | K61: 0.0937 | L61: 0.0897 | M61: 0.1101 | N61: 0.1174 | O61: 0.1117 | P61: 0.1409 | Q61: 0.1166 | R61: 0.0955 | S61: 0.09841798818
C62: Midlands | D62: NHS Derby and Derbyshire ICB | E62: RTG | F62: University Hospitals of Derby and Burton NHS Foundation Trust | G62: 0.0637 | H62: 0.1168 | I62: 0.0926 | J62: 0.0794 | K62: 0.0804 | L62: 0.0817 | M62: 0.1005 | N62: 0.1091 | O62: 0.1214 | P62: 0.1271 | Q62: 0.1205 | R62: 0.0838 | S62: 0.09940179194
C63: Midlands | D63: NHS Leicester, Leicestershire and Rutland ICB | E63: RWE | F63: University Hospitals of Leicester NHS Trust | G63: 0.1042 | H63: 0.1116 | I63: 0.0923 | J63: 0.0762 | K63: 0.1077 | L63: 0.1099 | M63: 0.1351 | N63: 0.138 | O63: 0.1218 | P63: 0.147 | Q63: 0.1304 | R63: 0.1288 | S63: 0.1174420389
C64: Midlands | D64: NHS Staffordshire and Stoke-on-Trent ICB | E64: RJE | F64: University Hospitals of North Midlands NHS Trust | G64: 0.113 | H64: 0.1198 | I64: 0.1216 | J64: 0.1249 | K64: 0.1038 | L64: 0.1214 | M64: 0.1506 | N64: 0.1496 | O64: 0.1476 | P64: 0.171 | Q64: 0.1528 | R64: 0.1397 | S64: 0.1345566677
C65: Midlands | D65: NHS Black Country ICB | E65: RBK | F65: Walsall Healthcare NHS Trust | G65: 0.0359 | H65: 0.0177 | I65: 0.0361 | J65: 0.0332 | K65: 0.0504 | L65: 0.0502 | M65: 0.0763 | N65: 0.0491 | O65: 0.064 | P65: 0.0711 | Q65: 0.0412 | R65: 0.037 | S65: 0.04728994878
C66: Midlands | D66: NHS Herefordshire and Worcestershire ICB | E66: RWP | F66: Worcestershire Acute Hospitals NHS Trust | G66: 0.1441 | H66: 0.13 | I66: 0.1328 | J66: 0.1209 | K66: 0.1475 | L66: 0.1598 | M66: 0.1873 | N66: 0.1593 | O66: 0.1654 | P66: 0.1922 | Q66: 0.184 | R66: 0.1544 | S66: 0.1564608982
C67: Midlands | D67: NHS Herefordshire and Worcestershire ICB | E67: RLQ | F67: Wye Valley NHS Trust | G67: 0.087 | H67: 0.1315 | I67: 0.1198 | J67: 0.1202 | K67: 0.1521 | L67: 0.1428 | M67: 0.1296 | N67: 0.1446 | O67: 0.1516 | P67: 0.1767 | Q67: 0.1637 | R67: 0.1429 | S67: 0.1385464889
C68: North East and Yorkshire | D68: NHS West Yorkshire ICB | E68: RCF | F68: Airedale NHS Foundation Trust | G68: 0.0341 | H68: 0.0197 | I68: 0.0139 | J68: 0.0189 | K68: 0.03 | L68: 0.033 | M68: 0.0867 | N68: 0.1062 | O68: 0.0933 | P68: 0.1134 | Q68: 0.0656 | R68: 0.0305 | S68: 0.05367022982
C69: North East and Yorkshire | D69: NHS South Yorkshire ICB | E69: RFF | F69: Barnsley Hospital NHS Foundation Trust | G69: 0.0045 | H69: 0.0062 | I69: 0.0073 | J69: 0.0148 | K69: 0.0189 | L69: 0.0129 | M69: 0.0165 | N69: 0.0271 | O69: 0.042 | P69: 0.0418 | Q69: 0.0188 | R69: 0.011 | S69: 0.0186030796
C70: North East and Yorkshire | D70: NHS West Yorkshire ICB | E70: RAE | F70: Bradford Teaching Hospitals NHS Foundation Trust | G70: 0.0553 | H70: 0.0458 | I70: 0.0387 | J70: 0.0305 | K70: 0.0536 | L70: 0.0595 | M70: 0.059 | N70: 0.0691 | O70: 0.0551 | P70: 0.062 | Q70: 0.0629 | R70: 0.0006 | S70: 0.04914634736
C71: North East and Yorkshire | D71: NHS West Yorkshire ICB | E71: RWY | F71: Calderdale and Huddersfield NHS Foundation Trust | G71: 0.0214 | H71: 0.0251 | I71: 0.0264 | J71: 0.0272 | K71: 0.0298 | L71: 0.041 | M71: 0.0585 | N71: 0.0536 | O71: 0.063 | P71: 0.0565 | Q71: 0.0418 | R71: 0.0305 | S71: 0.03965567981
C72: North East and Yorkshire | D72: NHS North East and North Cumbria ICB | E72: RXP | F72: County Durham and Darlington NHS Foundation Trust | G72: 0.086 | H72: 0.0824 | I72: 0.0721 | J72: 0.0687 | K72: 0.0498 | L72: 0.0874 | M72: 0.0986 | N72: 0.11 | O72: 0.1316 | P72: 0.1441 | Q72: 0.1214 | R72: 0.1109 | S72: 0.09728348122
C73: North East and Yorkshire | D73: NHS South Yorkshire ICB | E73: RP5 | F73: Doncaster and Bassetlaw Teaching Hospitals NHS Foundation Trust | G73: 0.0369 | H73: 0.0293 | I73: 0.0294 | J73: 0.0309 | K73: 0.0358 | L73: 0.0412 | M73: 0.0671 | N73: 0.0651 | O73: 0.0779 | P73: 0.0918 | Q73: 0.0671 | R73: 0.0347 | S73: 0.05064489074
C74: North East and Yorkshire | D74: NHS North East and North Cumbria ICB | E74: RR7 | F74: Gateshead Health NHS Foundation Trust | G74: 0.0407 | H74: 0.0543 | I74: 0.064 | J74: 0.0615 | K74: 0.0669 | L74: 0.1107 | M74: 0.095 | N74: 0.0782 | O74: 0.1223 | P74: 0.1157 | Q74: 0.0816 | R74: 0.0607 | S74: 0.07917818264
C75: North East and Yorkshire | D75: NHS Humber and North Yorkshire ICB | E75: RCD | F75: Harrogate and District NHS Foundation Trust | G75: 0.0068 | H75: 0.006 | I75: 0.0073 | J75: 0.007 | K75: 0.0141 | L75: 0.0241 | M75: 0.0389 | N75: 0.0514 | O75: 0.0676 | P75: 0.0719 | Q75: 0.0427 | R75: 0.0276 | S75: 0.02591016682
C76: North East and Yorkshire | D76: NHS Humber and North Yorkshire ICB | E76: RWA | F76: Hull University Teaching Hospitals NHS Trust | G76: 0.0811 | H76: 0.1018 | I76: 0.0918 | J76: 0.0652 | K76: 0.0901 | L76: 0.0925 | M76: 0.146 | N76: 0.1541 | O76: 0.1586 | P76: 0.144 | Q76: 0.13 | R76: 0.122 | S76: 0.1152614564
C77: North East and Yorkshire | D77: NHS West Yorkshire ICB | E77: RR8 | F77: Leeds Teaching Hospitals NHS Trust | G77: 0.0588 | H77: 0.0597 | I77: 0.0574 | J77: 0.0491 | K77: 0.062 | L77: 0.0853 | M77: 0.0936 | N77: 0.0828 | O77: 0.0968 | P77: 0.0804 | Q77: 0.1049 | R77: 0.0841 | S77: 0.07663971406
C78: North East and Yorkshire | D78: NHS West Yorkshire ICB | E78: RXF | F78: Mid Yorkshire Hospitals NHS Trust | G78: 0.024 | H78: 0.0574 | I78: 0.0505 | J78: 0.0395 | K78: 0.0818 | L78: 0.0836 | M78: 0.1229 | N78: 0.1135 | O78: 0.1313 | P78: 0.1375 | Q78: 0.1087 | R78: 0.1158 | S78: 0.0893236283
C79: North East and Yorkshire | D79: NHS North East and North Cumbria ICB | E79: RNN | F79: North Cumbria Integrated Care NHS Foundation Trust | G79: 0.0793 | H79: 0.0686 | I79: 0.0489 | J79: 0.0585 | K79: 0.0668 | L79: 0.0996 | M79: 0.1159 | N79: 0.1175 | O79: 0.1335 | P79: 0.1464 | Q79: 0.1279 | R79: 0.1374 | S79: 0.09953928113
C80: North East and Yorkshire | D80: NHS North East and North Cumbria ICB | E80: RVW | F80: North Tees and Hartlepool NHS Foundation Trust | G80: 0.0225 | H80: 0.0196 | I80: 0.0122 | J80: 0.0128 | K80: 0.0204 | L80: 0.0077 | M80: 0.0138 | N80: 0.011 | O80: 0.0448 | P80: 0.0446 | Q80: 0.026 | R80: 0.0038 | S80: 0.02018003394
C81: North East and Yorkshire | D81: NHS Humber and North Yorkshire ICB | E81: RJL | F81: Northern Lincolnshire and Goole NHS Foundation Trust | G81: 0.0949 | H81: 0.1018 | I81: 0.0962 | J81: 0.0909 | K81: 0.0787 | L81: 0.1016 | M81: 0.1304 | N81: 0.0945 | O81: 0.107 | P81: 0.1296 | Q81: 0.1338 | R81: 0.1093 | S81: 0.1059970024
C82: North East and Yorkshire | D82: NHS North East and North Cumbria ICB | E82: RTF | F82: Northumbria Healthcare NHS Foundation Trust | G82: 0.0013 | H82: 0.001 | I82: 0.0028 | J82: 0.0006 | K82: 0.0026 | L82: 0.0008 | M82: 0.0072 | N82: 0.0101 | O82: 0.0117 | P82: 0.0106 | Q82: 0.006 | R82: 0.0135 | S82: 0.005869195825
C83: North East and Yorkshire | D83: NHS South Yorkshire ICB | E83: RCU | F83: Sheffield Children's NHS Foundation Trust | G83: 0.0006 | H83: 0 | I83: 0.0002 | J83: 0 | K83: 0 | L83: 0.0002 | M83: 0.0004 | N83: 0.0003 | O83: 0.0004 | P83: 0 | Q83: 0 | R83: 0.0009 | S83: 0.0002604632991
C84: North East and Yorkshire | D84: NHS South Yorkshire ICB | E84: RHQ | F84: Sheffield Teaching Hospitals NHS Foundation Trust | G84: 0.036 | H84: 0.0352 | I84: 0.0353 | J84: 0.0395 | K84: 0.0386 | L84: 0.0461 | M84: 0.0694 | N84: 0.0609 | O84: 0.075 | P84: 0.0522 | Q84: 0.0542 | R84: 0.0557 | S84: 0.04988742646
C85: North East and Yorkshire | D85: NHS North East and North Cumbria ICB | E85: RTR | F85: South Tees Hospitals NHS Foundation Trust | G85: 0.0298 | H85: 0.0268 | I85: 0.0212 | J85: 0.0093 | K85: 0.0114 | L85: 0.0153 | M85: 0.0292 | N85: 0.0479 | O85: 0.0443 | P85: 0.0311 | Q85: 0.0484 | R85: 0.0279 | S85: 0.02859334351
C86: North East and Yorkshire | D86: NHS North East and North Cumbria ICB | E86: R0B | F86: South Tyneside and Sunderland NHS Foundation Trust | G86: 0.0274 | H86: 0.0229 | I86: 0.0157 | J86: 0.013 | K86: 0.0111 | L86: 0.0186 | M86: 0.0184 | N86: 0.0243 | O86: 0.0314 | P86: 0.0449 | Q86: 0.0481 | R86: 0.0416 | S86: 0.0266611342
C87: North East and Yorkshire | D87: NHS North East and North Cumbria ICB | E87: RTD | F87: The Newcastle Upon Tyne Hospitals NHS Foundation Trust | G87: 0.0218 | H87: 0.0124 | I87: 0.0114 | J87: 0.0096 | K87: 0.0202 | L87: 0.0176 | M87: 0.0304 | N87: 0.0315 | O87: 0.041 | P87: 0.0426 | Q87: 0.0247 | R87: 0.0294 | S87: 0.02454951888
C88: North East and Yorkshire | D88: NHS South Yorkshire ICB | E88: RFR | F88: The Rotherham NHS Foundation Trust | G88: 0.0586 | H88: 0.0294 | I88: 0.049 | J88: 0.032 | K88: 0.0716 | L88: 0.0414 | M88: 0.0547 | N88: 0.0325 | O88: 0.0507 | P88: 0.087 | Q88: 0.0798 | R88: 0.0578 | S88: 0.05372301973
C89: North East and Yorkshire | D89: NHS Humber and North Yorkshire ICB | E89: RCB | F89: York and Scarborough Teaching Hospitals NHS Foundation Trust | G89: 0.1535 | H89: 0.1516 | I89: 0.1285 | J89: 0.1042 | K89: 0.1612 | L89: 0.1629 | M89: 0.1829 | N89: 0.1859 | O89: 0.1741 | P89: 0.2283 | Q89: 0.1905 | R89: 0.1913 | S89: 0.1683786709
C90: North West | D90: NHS Cheshire and Merseyside ICB | E90: RBS | F90: Alder Hey Children's NHS Foundation Trust | G90: 0 | H90: 0.0012 | I90: 0.0009 | J90: 0.0012 | K90: 0.0007 | L90: 0.0029 | M90: 0.0043 | N90: 0.003 | O90: 0.0016 | P90: 0.0013 | Q90: 0.0022 | R90: 0.0006 | S90: 0.001703772639
C91: North West | D91: NHS Lancashire and South Cumbria ICB | E91: RXL | F91: Blackpool Teaching Hospitals NHS Foundation Trust | G91: 0.2187 | H91: 0.2337 | I91: 0.2227 | J91: 0.2287 | K91: 0.2518 | L91: 0.2541 | M91: 0.2723 | N91: 0.2366 | O91: 0.2674 | P91: 0.2631 | Q91: 0.2702 | R91: 0.2733 | S91: 0.2494641281
C92: North West | D92: NHS Greater Manchester ICB | E92: RMC | F92: Bolton NHS Foundation Trust | G92: 0.1015 | H92: 0.1127 | I92: 0.1023 | J92: 0.1111 | K92: 0.1279 | L92: 0.1184 | M92: 0.1387 | N92: 0.1496 | O92: 0.1628 | P92: 0.1914 | Q92: 0.2102 | R92: 0.1697 | S92: 0.1383285571
C93: North West | D93: NHS Cheshire and Merseyside ICB | E93: RJR | F93: Countess of Chester Hospital NHS Foundation Trust | G93: 0.1937 | H93: 0.1695 | I93: 0.1666 | J93: 0.1744 | K93: 0.1964 | L93: 0.1982 | M93: 0.2088 | N93: 0.2056 | O93: 0.2132 | P93: 0.2317 | Q93: 0.22 | R93: 0.2265 | S93: 0.199853988
C94: North West | D94: NHS Cheshire and Merseyside ICB | E94: RJN | F94: East Cheshire NHS Trust | G94: 0.1432 | H94: 0.1699 | I94: 0.1262 | J94: 0.0667 | K94: 0.0965 | L94: 0.1374 | M94: 0.1087 | N94: 0.1474 | O94: 0.1756 | P94: 0.1979 | Q94: 0.1495 | R94: 0.1379 | S94: 0.1378468501
C95: North West | D95: NHS Lancashire and South Cumbria ICB | E95: RXR | F95: East Lancashire Hospitals NHS Trust | G95: 0.1638 | H95: 0.1585 | I95: 0.1701 | J95: 0.1897 | K95: 0.2146 | L95: 0.2109 | M95: 0.2229 | N95: 0.2163 | O95: 0.2165 | P95: 0.2399 | Q95: 0.2318 | R95: 0.2002 | S95: 0.2102859031
C96: North West | D96: NHS Lancashire and South Cumbria ICB | E96: RXN | F96: Lancashire Teaching Hospitals NHS Foundation Trust | G96: 0.1175 | H96: 0.1058 | I96: 0.1016 | J96: 0.0989 | K96: 0.105 | L96: 0.1251 | M96: 0.1455 | N96: 0.1476 | O96: 0.1469 | P96: 0.1567 | Q96: 0.1446 | R96: 0.1419 | S96: 0.1281649934
C97: North West | D97: NHS Cheshire and Merseyside ICB | E97: REM | F97: Liverpool University Hospitals NHS Foundation Trust | G97: 0.1437 | H97: 0.1392 | I97: 0.1527 | J97: 0.1615 | K97: 0.1472 | L97: 0.1562 | M97: 0.1644 | N97: 0.1832 | O97: 0.1832 | P97: 0.1861 | Q97: 0.1943 | R97: 0.1859 | S97: 0.1664429915
C98: North West | D98: NHS Greater Manchester ICB | E98: R0A | F98: Manchester University NHS Foundation Trust | G98: 0.059 | H98: 0.0587 | I98: 0.0434 | J98: 0.0579 | K98: 0.0696 | L98: 0.0703 | M98: 0.0735 | N98: 0.0794 | O98: 0.0922 | P98: 0.1059 | Q98: 0.1067 | R98: 0.0914 | S98: 0.07665020265
C99: North West | D99: NHS Cheshire and Merseyside ICB | E99: RBN | F99: Mersey and West Lancashire Teaching Hospitals NHS Trust | G99: 0.146 | H99: 0.1567 | I99: 0.1567 | J99: 0.1495 | K99: 0.1595 | L99: 0.1607 | M99: 0.1655 | N99: 0.1728 | O99: 0.1771 | P99: 0.1802 | Q99: 0.1816 | R99: 0.169 | S99: 0.1664046625
C100: North West | D100: NHS Cheshire and Merseyside ICB | E100: RBT | F100: Mid Cheshire Hospitals NHS Foundation Trust | G100: 0.0725 | H100: 0.0764 | I100: 0.0832 | J100: 0.0783 | K100: 0.0931 | L100: 0.1202 | M100: 0.1721 | N100: 0.1595 | O100: 0.1428 | P100: 0.1397 | Q100: 0.1003 | R100: 0.1374 | S100: 0.1151835237
C101: North West | D101: NHS Greater Manchester ICB | E101: RM3 | F101: Northern Care Alliance NHS Foundation Trust | G101: 0.0767 | H101: 0.0618 | I101: 0.0646 | J101: 0.0789 | K101: 0.1008 | L101: 0.1028 | M101: 0.117 | N101: 0.1263 | O101: 0.1486 | P101: 0.1577 | Q101: 0.1346 | R101: 0.1156 | S101: 0.1072965689
C102: North West | D102: NHS Greater Manchester ICB | E102: RWJ | F102: Stockport NHS Foundation Trust | G102: 0.0491 | H102: 0.0806 | I102: 0.0482 | J102: 0.0619 | K102: 0.065 | L102: 0.0862 | M102: 0.1256 | N102: 0.1014 | O102: 0.1471 | P102: 0.1658 | Q102: 0.1545 | R102: 0.1137 | S102: 0.1001793175
C103: North West | D103: NHS Greater Manchester ICB | E103: RMP | F103: Tameside and Glossop Integrated Care NHS Foundation Trust | G103: 0.0195 | H103: 0.0315 | I103: 0.0518 | J103: 0.038 | K103: 0.0616 | L103: 0.0321 | M103: 0.0494 | N103: 0.0512 | O103: 0.0836 | P103: 0.1523 | Q103: 0.1044 | R103: 0.0798 | S103: 0.06349929665
C104: North West | D104: NHS Lancashire and South Cumbria ICB | E104: RTX | F104: University Hospitals of Morecambe Bay NHS Foundation Trust | G104: 0.0932 | H104: 0.0746 | I104: 0.0756 | J104: 0.0587 | K104: 0.0727 | L104: 0.0752 | M104: 0.1175 | N104: 0.0903 | O104: 0.0748 | P104: 0.1051 | Q104: 0.131 | R104: 0.0974 | S104: 0.08871799681
C105: North West | D105: NHS Cheshire and Merseyside ICB | E105: RWW | F105: Warrington and Halton Teaching Hospitals NHS Foundation Trust | G105: 0.2094 | H105: 0.1886 | I105: 0.2175 | J105: 0.2223 | K105: 0.2278 | L105: 0.2098 | M105: 0.2093 | N105: 0.2213 | O105: 0.2411 | P105: 0.2306 | Q105: 0.2365 | R105: 0.196 | S105: 0.2172229351
C106: North West | D106: NHS Cheshire and Merseyside ICB | E106: RBL | F106: Wirral University Teaching Hospital NHS Foundation Trust | G106: 0.1335 | H106: 0.1522 | I106: 0.1284 | J106: 0.1434 | K106: 0.1426 | L106: 0.1574 | M106: 0.1757 | N106: 0.1794 | O106: 0.187 | P106: 0.1966 | Q106: 0.187 | R106: 0.1993 | S106: 0.1651351435
C107: North West | D107: NHS Greater Manchester ICB | E107: RRF | F107: Wrightington, Wigan and Leigh NHS Foundation Trust | G107: 0.1889 | H107: 0.1684 | I107: 0.1764 | J107: 0.1843 | K107: 0.1898 | L107: 0.173 | M107: 0.1833 | N107: 0.2082 | O107: 0.2056 | P107: 0.2297 | Q107: 0.2156 | R107: 0.2132 | S107: 0.194758298
C108: South East | D108: NHS Surrey Heartlands ICB | E108: RTK | F108: Ashford and St Peter's Hospitals NHS Foundation Trust | G108: 0.0821 | H108: 0.0683 | I108: 0.0637 | J108: 0.0626 | K108: 0.0917 | L108: 0.0832 | M108: 0.0983 | N108: 0.1144 | O108: 0.1212 | P108: 0.1234 | Q108: 0.1133 | R108: 0.0965 | S108: 0.0937773257
C109: South East | D109: NHS Buckinghamshire, Oxfordshire and Berkshire West ICB | E109: RXQ | F109: Buckinghamshire Healthcare NHS Trust | G109: 0.1478 | H109: 0.1588 | I109: 0.1587 | J109: 0.1008 | K109: 0.1315 | L109: 0.1501 | M109: 0.1654 | N109: 0.1652 | O109: 0.1678 | P109: 0.1827 | Q109: 0.1665 | R109: 0.0869 | S109: 0.1486008225
C110: South East | D110: NHS Kent and Medway ICB | E110: RN7 | F110: Dartford and Gravesham NHS Trust | G110: 0.0366 | H110: 0.0399 | I110: 0.0519 | J110: 0.0444 | K110: 0.0529 | L110: 0.0356 | M110: 0.0654 | N110: 0.0933 | O110: 0.0874 | P110: 0.1093 | Q110: 0.1091 | R110: 0.0938 | S110: 0.06918733631
C111: South East | D111: NHS Kent and Medway ICB | E111: RVV | F111: East Kent Hospitals University NHS Foundation Trust | G111: 0.2129 | H111: 0.2165 | I111: 0.1984 | J111: 0.1709 | K111: 0.1931 | L111: 0.2015 | M111: 0.2093 | N111: 0.2011 | O111: 0.2164 | P111: 0.212 | Q111: 0.2003 | R111: 0.1858 | S111: 0.2015026631
C112: South East | D112: NHS Sussex ICB | E112: RXC | F112: East Sussex Healthcare NHS Trust | G112: 0.0446 | H112: 0.0357 | I112: 0.0332 | J112: 0.0316 | K112: 0.0336 | L112: 0.0442 | M112: 0.0686 | N112: 0.0733 | O112: 0.0793 | P112: 0.0906 | Q112: 0.0741 | R112: 0.0634 | S112: 0.05611811535
C113: South East | D113: NHS Frimley ICB | E113: RDU | F113: Frimley Health NHS Foundation Trust | G113: 0.06 | H113: 0.0766 | I113: 0.0588 | J113: 0.0425 | K113: 0.046 | L113: 0.0664 | M113: 0.0733 | N113: 0.0889 | O113: 0.0852 | P113: 0.1163 | Q113: 0.0979 | R113: 0.0888 | S113: 0.07542235076
C114: South East | D114: NHS Hampshire and Isle Of Wight ICB | E114: RN5 | F114: Hampshire Hospitals NHS Foundation Trust | G114: 0.0461 | H114: 0.0341 | I114: 0.0167 | J114: 0.0128 | K114: 0.0245 | L114: 0.0536 | M114: 0.0555 | N114: 0.0787 | O114: 0.0793 | P114: 0.0846 | Q114: 0.0697 | R114: 0.0608 | S114: 0.05122499064
C115: South East | D115: NHS Hampshire and Isle Of Wight ICB | E115: R1F | F115: Isle of Wight NHS Trust | G115: 0.1541 | H115: 0.1478 | I115: 0.1048 | J115: 0.1697 | K115: 0.1689 | L115: 0.1575 | M115: 0.1889 | N115: 0.1614 | O115: 0.1751 | P115: 0.1866 | Q115: 0.1307 | R115: 0.1307 | S115: 0.1560025244
C116: South East | D116: NHS Kent and Medway ICB | E116: RWF | F116: Maidstone and Tunbridge Wells NHS Trust | G116: 0.0231 | H116: 0.0363 | I116: 0.0369 | J116: 0.0437 | K116: 0.0508 | L116: 0.0515 | M116: 0.0614 | N116: 0.0729 | O116: 0.0623 | P116: 0.0722 | Q116: 0.0671 | R116: 0.0423 | S116: 0.05204137069
C117: South East | D117: NHS Kent and Medway ICB | E117: RPA | F117: Medway NHS Foundation Trust | G117: 0.1133 | H117: 0.0892 | I117: 0.1009 | J117: 0.1199 | K117: 0.1352 | L117: 0.1299 | M117: 0.1429 | N117: 0.1434 | O117: 0.1711 | P117: 0.1673 | Q117: 0.1506 | R117: 0.1323 | S117: 0.1330108
C118: South East | D118: NHS Buckinghamshire, Oxfordshire and Berkshire West ICB | E118: RTH | F118: Oxford University Hospitals NHS Foundation Trust | G118: 0.034 | H118: 0.0321 | I118: 0.0354 | J118: 0.031 | K118: 0.0378 | L118: 0.0521 | M118: 0.0603 | N118: 0.0727 | O118: 0.0758 | P118: 0.0716 | Q118: 0.0655 | R118: 0.0524 | S118: 0.05210220047
C119: South East | D119: NHS Hampshire and Isle Of Wight ICB | E119: RHU | F119: Portsmouth Hospitals University National Health Service Trust | G119: 0.1133 | H119: 0.1201 | I119: 0.0833 | J119: 0.1267 | K119: 0.1142 | L119: 0.1391 | M119: 0.1395 | N119: 0.1123 | O119: 0.1309 | P119: 0.1673 | Q119: 0.1328 | R119: 0.108 | S119: 0.1238452288
C120: South East | D120: NHS Buckinghamshire, Oxfordshire and Berkshire West ICB | E120: RHW | F120: Royal Berkshire NHS Foundation Trust | G120: 0.0136 | H120: 0.013 | I120: 0.0132 | J120: 0.0099 | K120: 0.0202 | L120: 0.022 | M120: 0.0405 | N120: 0.0451 | O120: 0.0526 | P120: 0.0521 | Q120: 0.0413 | R120: 0.0452 | S120: 0.03082881136
C121: South East | D121: NHS Surrey Heartlands ICB | E121: RA2 | F121: Royal Surrey County Hospital NHS Foundation Trust | G121: 0.0385 | H121: 0.0337 | I121: 0.0494 | J121: 0.0326 | K121: 0.0594 | L121: 0.0373 | M121: 0.0888 | N121: 0.1146 | O121: 0.1024 | P121: 0.1089 | Q121: 0.06 | R121: 0.0337 | S121: 0.06345288224
C122: South East | D122: NHS Surrey Heartlands ICB | E122: RTP | F122: Surrey and Sussex Healthcare NHS Trust | G122: 0.0414 | H122: 0.0556 | I122: 0.0602 | J122: 0.0487 | K122: 0.0575 | L122: 0.0635 | M122: 0.0993 | N122: 0.0928 | O122: 0.0895 | P122: 0.1088 | Q122: 0.1506 | R122: 0.1053 | S122: 0.08164880288
C123: South East | D123: NHS Hampshire and Isle Of Wight ICB | E123: RHM | F123: University Hospital Southampton NHS Foundation Trust | G123: 0.0117 | H123: 0.022 | I123: 0.0214 | J123: 0.0113 | K123: 0.0194 | L123: 0.021 | M123: 0.0318 | N123: 0.0377 | O123: 0.0324 | P123: 0.0421 | Q123: 0.0307 | R123: 0.0217 | S123: 0.02541602255
C124: South East | D124: NHS Sussex ICB | E124: RYR | F124: University Hospitals Sussex NHS Foundation Trust | G124: 0.0961 | H124: 0.0963 | I124: 0.0899 | J124: 0.0763 | K124: 0.0938 | L124: 0.1044 | M124: 0.1147 | N124: 0.149 | O124: 0.1552 | P124: 0.1644 | Q124: 0.1578 | R124: 0.146 | S124: 0.1183067261
C125: South West | D125: NHS Dorset ICB | E125: RBD | F125: Dorset County Hospital NHS Foundation Trust | G125: 0.0206 | H125: 0.0363 | I125: 0.0726 | J125: 0.0558 | K125: 0.0518 | L125: 0.0795 | M125: 0.0714 | N125: 0.0949 | O125: 0.0874 | P125: 0.0743 | Q125: 0.0856 | R125: 0.1015 | S125: 0.06919545447
C126: South West | D126: NHS Gloucestershire ICB | E126: RTE | F126: Gloucestershire Hospitals NHS Foundation Trust | G126: 0.147 | H126: 0.1422 | I126: 0.1365 | J126: 0.1154 | K126: 0.1234 | L126: 0.1325 | M126: 0.1441 | N126: 0.145 | O126: 0.1484 | P126: 0.154 | Q126: 0.1527 | R126: 0.1369 | S126: 0.139669147
C127: South West | D127: NHS Bath and North East Somerset, Swindon and Wiltshire ICB | E127: RN3 | F127: Great Western Hospitals NHS Foundation Trust | G127: 0.1451 | H127: 0.1356 | I127: 0.1478 | J127: 0.136 | K127: 0.1387 | L127: 0.1692 | M127: 0.1706 | N127: 0.178 | O127: 0.126 | P127: 0.165 | Q127: 0.1632 | R127: 0.1479 | S127: 0.1518192033
C128: South West | D128: NHS Bristol, North Somerset and South Gloucestershire ICB | E128: RVJ | F128: North Bristol NHS Trust | G128: 0.0123 | H128: 0.0266 | I128: 0.0189 | J128: 0.0179 | K128: 0.0199 | L128: 0.0383 | M128: 0.0805 | N128: 0.0732 | O128: 0.0753 | P128: 0.0905 | Q128: 0.0619 | R128: 0.0747 | S128: 0.0496277205
C129: South West | D129: NHS Cornwall and The Isles Of Scilly ICB | E129: REF | F129: Royal Cornwall Hospitals NHS Trust | G129: 0.1764 | H129: 0.1403 | I129: 0.1335 | J129: 0.1269 | K129: 0.1329 | L129: 0.1647 | M129: 0.2013 | N129: 0.2081 | O129: 0.1923 | P129: 0.22 | Q129: 0.2101 | R129: 0.193 | S129: 0.1730642271
C130: South West | D130: NHS Devon ICB | E130: RH8 | F130: Royal Devon University Healthcare NHS Foundation Trust | G130: 0.0549 | H130: 0.0614 | I130: 0.0528 | J130: 0.0303 | K130: 0.0564 | L130: 0.0674 | M130: 0.0663 | N130: 0.0431 | O130: 0.0584 | P130: 0.0694 | Q130: 0.0493 | R130: 0.0197 | S130: 0.05224165689
C131: South West | D131: NHS Bath and North East Somerset, Swindon and Wiltshire ICB | E131: RD1 | F131: Royal United Hospitals Bath NHS Foundation Trust | G131: 0.0793 | H131: 0.0524 | I131: 0.0443 | J131: 0.0306 | K131: 0.0207 | L131: 0.0294 | M131: 0.0518 | N131: 0.0444 | O131: 0.0609 | P131: 0.0643 | Q131: 0.07 | R131: 0.0505 | S131: 0.0498848499
C132: South West | D132: NHS Bath and North East Somerset, Swindon and Wiltshire ICB | E132: RNZ | F132: Salisbury NHS Foundation Trust | G132: 0.042 | H132: 0.05 | I132: 0.0323 | J132: 0.0245 | K132: 0.045 | L132: 0.047 | M132: 0.0504 | N132: 0.0598 | O132: 0.07 | P132: 0.0842 | Q132: 0.0733 | R132: 0.0526 | S132: 0.05253136201
C133: South West | D133: NHS Somerset ICB | E133: RH5 | F133: Somerset NHS Foundation Trust | G133: 0.0256 | H133: 0.0173 | I133: 0.0216 | J133: 0.0149 | K133: 0.0228 | L133: 0.0379 | M133: 0.0257 | N133: 0.0265 | O133: 0.0501 | P133: 0.0623 | Q133: 0.03 | R133: 0.0246 | S133: 0.02984311447
C134: South West | D134: NHS Devon ICB | E134: RA9 | F134: Torbay and South Devon NHS Foundation Trust | G134: 0.0994 | H134: 0.138 | I134: 0.1263 | J134: 0.0936 | K134: 0.1215 | L134: 0.1047 | M134: 0.1297 | N134: 0.1277 | O134: 0.102 | P134: 0.138 | Q134: 0.1372 | R134: 0.1319 | S134: 0.1205552534
C135: South West | D135: NHS Bristol, North Somerset and South Gloucestershire ICB | E135: RA7 | F135: University Hospitals Bristol and Weston NHS Foundation Trust | G135: 0.0462 | H135: 0.0504 | I135: 0.0311 | J135: 0.0085 | K135: 0.0212 | L135: 0.0285 | M135: 0.0379 | N135: 0.047 | O135: 0.0508 | P135: 0.0432 | Q135: 0.0406 | R135: 0.0368 | S135: 0.03705442966
C136: South West | D136: NHS Dorset ICB | E136: R0D | F136: University Hospitals Dorset NHS Foundation Trust | G136: 0.0665 | H136: 0.0427 | I136: 0.044 | J136: 0.0617 | K136: 0.0494 | L136: 0.062 | M136: 0.0631 | N136: 0.0627 | O136: 0.0903 | P136: 0.1184 | Q136: 0.0697 | R136: 0.0669 | S136: 0.06648545313
C137: South West | D137: NHS Devon ICB | E137: RK9 | F137: University Hospitals Plymouth NHS Trust | G137: 0.1874 | H137: 0.1937 | I137: 0.1506 | J137: 0.1044 | K137: 0.1589 | L137: 0.1708 | M137: 0.204 | N137: 0.2028 | O137: 0.186 | P137: 0.207 | Q137: 0.2038 | R137: 0.2203 | S137: 0.182176541
C139: Notes:
C141: 1. All data is rounded to the nearest 5 attendances and any value less than 8 is suppressed (*). From April 2024 this has not been applied to National Level figures.
C142: 2. Totals may not equal the sum of individual values due to rounding
C143: 3. A subset of providers are used for each metrc depending on whether they have the require field completeness. This subset may differ each month. For further details of providers included in each subset see the data completeness and quality tab
C144: 4. The latest period is published as provisional and will become final the following month

Sheet FY 24-25
C2: Title: | D2: Proportion of Type 1 and 2 Attendances Where the Patient Spent Over 12 Hours in Department
C3: Summary: | D3: The proportion of Type 1 and 2 Attendances where the patient spent over 12 hours in department by trust, for the financial year 2024/25.
C5: Period: | D5: April 2024 to March 2025
C6: Source: | D6: ECDS - NHS England
C7: Basis: | D7: Provider Type 1 & 2
C8: Published: | D8: 15th May 2025
C9: Data Extracted: | D9: 1st May 2025
C10: Revised: | D10: N/A
C11: Status: | D11: Published (Final) - Official Statistics in development
C12: Contact: | D12: Kerry Evert - england.aedata@nhs.net
C14: Provider Level Data
C16: Region | D16: ICB | E16: Org Code | F16: Provider | G16: 2024-04-01 | H16: 2024-05-01 | I16: 2024-06-01 | J16: 2024-07-01 | K16: 2024-08-01 | L16: 2024-09-01 | M16: 2024-10-01 | N16: 2024-11-01 | O16: 2024-12-01 | P16: 2025-01-01 | Q16: 2025-02-01 | R16: 2025-03-01 | S16: 2024/25
C17: East of England | D17: NHS Bedfordshire, Luton and Milton Keynes ICB | E17: RC9 | F17: Bedfordshire Hospitals NHS Foundation Trust | G17: 0.0686 | H17: 0.0601 | I17: 0.0423 | J17: 0.0416 | K17: 0.0339 | L17: 0.043 | M17: 0.0675 | N17: 0.0513 | O17: 0.0783 | P17: 0.0899 | Q17: 0.0593 | R17: 0.0611 | S17: 0.05803814994
C18: East of England | D18: NHS Cambridgeshire and Peterborough ICB | E18: RGT | F18: Cambridge University Hospitals NHS Foundation Trust | G18: 0.1454 | H18: 0.1322 | I18: 0.1294 | J18: 0.1207 | K18: 0.0787 | L18: 0.1114 | M18: 0.1289 | N18: 0.1171 | O18: 0.1297 | P18: 0.1349 | Q18: 0.1363 | R18: 0.1012 | S18: 0.1220879095
C19: East of England | D19: NHS Hertfordshire and West Essex ICB | E19: RWH | F19: East and North Hertfordshire NHS Trust | G19: 0.1313 | H19: 0.1409 | I19: 0.0874 | J19: 0.0928 | K19: 0.0901 | L19: 0.0918 | M19: 0.1469 | N19: 0.1305 | O19: 0.1702 | P19: 0.1723 | Q19: 0.1634 | R19: 0.1178 | S19: 0.1279078389
C20: East of England | D20: NHS Suffolk and North East Essex ICB | E20: RDE | F20: East Suffolk and North Essex NHS Foundation Trust | G20: 0.082 | H20: 0.0994 | I20: 0.097 | J20: 0.0819 | K20: 0.0593 | L20: 0.0977 | M20: 0.1359 | N20: 0.1327 | O20: 0.1693 | P20: 0.169 | Q20: 0.1608 | R20: 0.1323 | S20: 0.1171903047
C21: East of England | D21: NHS Norfolk and Waveney ICB | E21: RGP | F21: James Paget University Hospitals NHS Foundation Trust | G21: 0.0897 | H21: 0.0926 | I21: 0.0699 | J21: 0.0792 | K21: 0.0728 | L21: 0.08 | M21: 0.1025 | N21: 0.0933 | O21: 0.1035 | P21: 0.1124 | Q21: 0.1135 | R21: 0.1054 | S21: 0.0922548393
C22: East of England | D22: NHS Mid and South Essex ICB | E22: RAJ | F22: Mid and South Essex NHS Foundation Trust | G22: 0.0748 | H22: 0.0783 | I22: 0.0953 | J22: 0.0856 | K22: 0.0841 | L22: 0.1001 | M22: 0.0931 | N22: 0.0858 | O22: 0.1077 | P22: 0.1212 | Q22: 0.1004 | R22: 0.0939 | S22: 0.09327200081
C23: East of England | D23: NHS Bedfordshire, Luton and Milton Keynes ICB | E23: RD8 | F23: Milton Keynes University Hospital NHS Foundation Trust | G23: 0.0739 | H23: 0.0526 | I23: 0.0571 | J23: 0.0337 | K23: 0.0367 | L23: 0.0529 | M23: 0.0632 | N23: 0.0584 | O23: 0.0779 | P23: 0.0907 | Q23: 0.0672 | R23: 0.0688 | S23: 0.0610302777
C24: East of England | D24: NHS Norfolk and Waveney ICB | E24: RM1 | F24: Norfolk and Norwich University Hospitals NHS Foundation Trust | G24: 0.035 | H24: 0.0343 | I24: 0.0293 | J24: 0.0308 | K24: 0.0278 | L24: 0.048 | M24: 0.0608 | N24: 0.0487 | O24: 0.0638 | P24: 0.0717 | Q24: 0.0676 | R24: 0.0566 | S24: 0.04774328738
C25: East of England | D25: NHS Cambridgeshire and Peterborough ICB | E25: RGN | F25: North West Anglia NHS Foundation Trust | G25: 0.1327 | H25: 0.1191 | I25: 0.1029 | J25: 0.0999 | K25: 0.1037 | L25: 0.1096 | M25: 0.1206 | N25: 0.1195 | O25: 0.1145 | P25: 0.1368 | Q25: 0.1247 | R25: 0.117 | S25: 0.1167129858
C26: East of England | D26: NHS Hertfordshire and West Essex ICB | E26: RQW | F26: The Princess Alexandra Hospital NHS Trust | G26: 0.1151 | H26: 0.0927 | I26: 0.0972 | J26: 0.0994 | K26: 0.0815 | L26: 0.0978 | M26: 0.1192 | N26: 0.2005 | O26: 0.1874 | P26: 0.1607 | Q26: 0.0944 | R26: 0.074 | S26: 0.117884646
C27: East of England | D27: NHS Norfolk and Waveney ICB | E27: RCX | F27: The Queen Elizabeth Hospital, King's Lynn, NHS Foundation Trust | G27: 0.1406 | H27: 0.0963 | I27: 0.1185 | J27: 0.0813 | K27: 0.0886 | L27: 0.1049 | M27: 0.1186 | N27: 0.1354 | O27: 0.1566 | P27: 0.1577 | Q27: 0.1801 | R27: 0.1553 | S27: 0.127218488
C28: East of England | D28: NHS Hertfordshire and West Essex ICB | E28: RWG | F28: West Hertfordshire Hospitals Teaching NHS Trust | G28: 0.0584 | H28: 0.0669 | I28: 0.0429 | J28: 0.05 | K28: 0.0422 | L28: 0.0567 | M28: 0.0819 | N28: 0.0884 | O28: 0.0725 | P28: 0.1028 | Q28: 0.0945 | R28: 0.0849 | S28: 0.07052727827
C29: East of England | D29: NHS Suffolk and North East Essex ICB | E29: RGR | F29: West Suffolk NHS Foundation Trust | G29: 0.1312 | H29: 0.093 | I29: 0.1178 | J29: 0.0748 | K29: 0.0782 | L29: 0.0992 | M29: 0.1178 | N29: 0.1144 | O29: 0.1418 | P29: 0.148 | Q29: 0.1185 | R29: 0.0218 | S29: 0.1038748807
C30: London | D30: NHS North East London ICB | E30: RF4 | F30: Barking, Havering and Redbridge University Hospitals NHS Trust | G30: 0.173 | H30: 0.1778 | I30: 0.1585 | J30: 0.1547 | K30: 0.1698 | L30: 0.1736 | M30: 0.1755 | N30: 0.1694 | O30: 0.1803 | P30: 0.1887 | Q30: 0.185 | R30: 0.1778 | S30: 0.173776745
C31: London | D31: NHS North East London ICB | E31: R1H | F31: Barts Health NHS Trust | G31: 0.1872 | H31: 0.1802 | I31: 0.1662 | J31: 0.1556 | K31: 0.1728 | L31: 0.1565 | M31: 0.1692 | N31: 0.1667 | O31: 0.1731 | P31: 0.1669 | Q31: 0.138 | R31: 0.1432 | S31: 0.164642316
C32: London | D32: NHS North West London ICB | E32: RQM | F32: Chelsea and Westminster Hospital NHS Foundation Trust | G32: 0.0437 | H32: 0.042 | I32: 0.0459 | J32: 0.0287 | K32: 0.0266 | L32: 0.0421 | M32: 0.0698 | N32: 0.0657 | O32: 0.0487 | P32: 0.0754 | Q32: 0.0747 | R32: 0.0465 | S32: 0.05129758733
C33: London | D33: NHS South West London ICB | E33: RJ6 | F33: Croydon Health Services NHS Trust | G33: 0.1009 | H33: 0.1052 | I33: 0.1018 | J33: 0.0924 | K33: 0.0952 | L33: 0.1122 | M33: 0.1173 | N33: 0.1032 | O33: 0.1058 | P33: 0.1143 | Q33: 0.1104 | R33: 0.1094 | S33: 0.105634892
C34: London | D34: NHS South West London ICB | E34: RVR | F34: Epsom and St Helier University Hospitals NHS Trust | G34: 0.1179 | H34: 0.1112 | I34: 0.1115 | J34: 0.1169 | K34: 0.1165 | L34: 0.1151 | M34: 0.1246 | N34: 0.1246 | O34: 0.1334 | P34: 0.1318 | Q34: 0.1367 | R34: 0.1293 | S34: 0.1224132657
C35: London | D35: NHS South East London ICB | E35: RJ1 | F35: Guy's and St Thomas' NHS Foundation Trust | G35: 0.0144 | H35: 0.0169 | I35: 0.0146 | J35: 0.0142 | K35: 0.0143 | L35: 0.0145 | M35: 0.0185 | N35: 0.0146 | O35: 0.0172 | P35: 0.0136 | Q35: 0.0144 | R35: 0.015 | S35: 0.01522960307
C36: London | D36: NHS North East London ICB | E36: RQX | F36: Homerton University Hospital NHS Foundation Trust | G36: 0.0508 | H36: 0.0471 | I36: 0.0428 | J36: 0.0341 | K36: 0.0416 | L36: 0.0459 | M36: 0.0522 | N36: 0.059 | O36: 0.0676 | P36: 0.0565 | Q36: 0.0644 | R36: 0.0497 | S36: 0.05086542127
C37: London | D37: NHS North West London ICB | E37: RYJ | F37: Imperial College Healthcare NHS Trust | G37: 0.0531 | H37: 0.0456 | I37: 0.0443 | J37: 0.0415 | K37: 0.052 | L37: 0.0536 | M37: 0.0706 | N37: 0.0615 | O37: 0.0712 | P37: 0.0844 | Q37: 0.0752 | R37: 0.0689 | S37: 0.05995587248
C38: London | D38: NHS South East London ICB | E38: RJZ | F38: King's College Hospital NHS Foundation Trust | G38: 0.156 | H38: 0.1496 | I38: 0.1362 | J38: 0.1257 | K38: 0.1125 | L38: 0.1242 | M38: 0.1467 | N38: 0.1417 | O38: 0.1559 | P38: 0.1711 | Q38: 0.1594 | R38: 0.1357 | S38: 0.1429608527
C39: London | D39: NHS South West London ICB | E39: RAX | F39: Kingston Hospital NHS Foundation Trust | G39: 0.1369 | H39: 0.1282 | I39: 0.122 | J39: 0.112 | K39: 0.118 | L39: 0.1154 | M39: 0.1313 | N39: 0.1344 | O39: 0.1462 | P39: 0.1416 | Q39: 0.1446 | R39: 0.1334 | S39: 0.1304867738
C40: London | D40: NHS South East London ICB | E40: RJ2 | F40: Lewisham and Greenwich NHS Trust | G40: 0.1426 | H40: 0.1261 | I40: 0.1167 | J40: 0.11 | K40: 0.0988 | L40: 0.1337 | M40: 0.1528 | N40: 0.1493 | O40: 0.1546 | P40: 0.1475 | Q40: 0.152 | R40: 0.1301 | S40: 0.1345912299
C41: London | D41: NHS North West London ICB | E41: R1K | F41: London North West University Healthcare NHS Trust | G41: 0.1469 | H41: 0.1394 | I41: 0.1395 | J41: 0.0952 | K41: 0.1208 | L41: 0.1607 | M41: 0.1616 | N41: 0.1543 | O41: 0.1838 | P41: 0.1869 | Q41: 0.1654 | R41: 0.1328 | S41: 0.1492372154
C42: London | D42: NHS North Central London ICB | E42: RAL | F42: Royal Free London NHS Foundation Trust | G42: 0.1491 | H42: 0.1598 | I42: 0.1322 | J42: 0.131 | K42: 0.1142 | L42: 0.1198 | M42: 0.1286 | N42: 0.1341 | O42: 0.1541 | P42: 0.1497 | Q42: 0.1456 | R42: 0.138 | S42: 0.1388132948
C43: London | D43: NHS South West London ICB | E43: RJ7 | F43: St George's University Hospitals NHS Foundation Trust | G43: 0.0977 | H43: 0.0858 | I43: 0.0552 | J43: 0.0812 | K43: 0.0839 | L43: 0.0802 | M43: 0.0914 | N43: 0.093 | O43: 0.0913 | P43: 0.1055 | Q43: 0.0898 | R43: 0.0905 | S43: 0.08691560329
C44: London | D44: NHS North West London ICB | E44: RAS | F44: The Hillingdon Hospitals NHS Foundation Trust | G44: 0.1054 | H44: 0.1239 | I44: 0.1478 | J44: 0.1486 | K44: 0.1367 | L44: 0.1678 | M44: 0.1565 | N44: 0.141 | O44: 0.1716 | P44: 0.1774 | Q44: 0.1607 | R44: 0.1404 | S44: 0.148631267
C45: London | D45: NHS North Central London ICB | E45: RRV | F45: University College London Hospitals NHS Foundation Trust | G45: 0.0372 | H45: 0.0382 | I45: 0.036 | J45: 0.0247 | K45: 0.0187 | L45: 0.0315 | M45: 0.0391 | N45: 0.0424 | O45: 0.0396 | P45: 0.0438 | Q45: 0.0381 | R45: 0.029 | S45: 0.03491366253
C46: London | D46: NHS North Central London ICB | E46: RKE | F46: Whittington Health NHS Trust | G46: 0.1098 | H46: 0.1076 | I46: 0.0895 | J46: 0.0984 | K46: 0.0691 | L46: 0.0719 | M46: 0.1013 | N46: 0.0831 | O46: 0.1151 | P46: 0.1258 | Q46: ** | R46: 0.0582 | S46: 0.1987826328
C47: Midlands | D47: NHS Birmingham and Solihull ICB | E47: RQ3 | F47: Birmingham Women's and Children's NHS Foundation Trust | G47: 0.0036 | H47: 0.0045 | I47: 0.0042 | J47: 0.001 | K47: 0.0011 | L47: 0.0018 | M47: 0.0044 | N47: 0.0071 | O47: 0.0183 | P47: 0.0036 | Q47: 0.0017 | R47: 0.0015 | S47: 0.004743740219
C48: Midlands | D48: NHS Derby and Derbyshire ICB | E48: RFS | F48: Chesterfield Royal Hospital NHS Foundation Trust | G48: 0.0534 | H48: 0.0494 | I48: 0.0235 | J48: 0.0411 | K48: 0.0263 | L48: 0.0507 | M48: 0.0797 | N48: 0.0694 | O48: 0.0787 | P48: 0.1122 | Q48: 0.0438 | R48: 0.0438 | S48: 0.05570666327
C49: Midlands | D49: NHS Coventry and Warwickshire ICB | E49: RLT | F49: George Eliot Hospital NHS Trust | G49: 0.1219 | H49: 0.1178 | I49: 0.0934 | J49: 0.0954 | K49: 0.0948 | L49: 0.1159 | M49: 0.1498 | N49: 0.1154 | O49: 0.1329 | P49: 0.1296 | Q49: 0.1325 | R49: 0.1268 | S49: 0.1190672843
C50: Midlands | D50: NHS Northamptonshire ICB | E50: RNQ | F50: Kettering General Hospital NHS Foundation Trust | G50: 0.125 | H50: 0.1334 | I50: 0.1255 | J50: 0.1162 | K50: 0.1342 | L50: 0.1416 | M50: 0.1502 | N50: 0.1483 | O50: 0.1484 | P50: 0.1462 | Q50: 0.1491 | R50: 0.1339 | S50: 0.1376368548
C51: Midlands | D51: NHS Northamptonshire ICB | E51: RNS | F51: Northampton General Hospital NHS Trust | G51: 0.133 | H51: 0.1367 | I51: 0.1284 | J51: 0.1281 | K51: 0.1456 | L51: 0.1355 | M51: 0.1425 | N51: 0.1533 | O51: 0.1639 | P51: 0.1763 | Q51: 0.1535 | R51: 0.1557 | S51: 0.1454562181
C52: Midlands | D52: NHS Nottingham and Nottinghamshire ICB | E52: RX1 | F52: Nottingham University Hospitals NHS Trust | G52: 0.1178 | H52: 0.0972 | I52: 0.0943 | J52: 0.0734 | K52: 0.0802 | L52: 0.0966 | M52: 0.1393 | N52: 0.1133 | O52: 0.1256 | P52: 0.1412 | Q52: 0.1203 | R52: 0.1158 | S52: 0.1095270592
C53: Midlands | D53: NHS Black Country ICB | E53: RXK | F53: Sandwell and West Birmingham Hospitals NHS Trust | G53: 0.106 | H53: 0.0923 | I53: 0.1168 | J53: 0.1154 | K53: 0.0978 | L53: 0.1216 | M53: 0.1209 | N53: 0.1052 | O53: 0.1371 | P53: 0.1206 | Q53: 0.1226 | R53: 0.0739 | S53: 0.1106799229
C54: Midlands | D54: NHS Nottingham and Nottinghamshire ICB | E54: RK5 | F54: Sherwood Forest Hospitals NHS Foundation Trust | G54: 0.0335 | H54: 0.033 | I54: 0.0352 | J54: 0.0387 | K54: 0.0138 | L54: 0.0446 | M54: 0.0548 | N54: 0.0741 | O54: 0.0934 | P54: 0.0844 | Q54: 0.0658 | R54: 0.029 | S54: 0.05163215885
C55: Midlands | D55: NHS Coventry and Warwickshire ICB | E55: RJC | F55: South Warwickshire NHS Foundation Trust | G55: 0.0176 | H55: 0.024 | I55: 0.0233 | J55: 0.0071 | K55: 0.0091 | L55: 0.0149 | M55: 0.0358 | N55: 0.0422 | O55: 0.0732 | P55: 0.0936 | Q55: 0.0474 | R55: 0.035 | S55: 0.03482839432
C56: Midlands | D56: NHS Black Country ICB | E56: RNA | F56: The Dudley Group NHS Foundation Trust | G56: 0.1049 | H56: 0.1212 | I56: 0.1326 | J56: 0.0927 | K56: 0.0613 | L56: 0.0894 | M56: 0.0948 | N56: 0.0987 | O56: 0.1226 | P56: 0.1244 | Q56: 0.1132 | R56: 0.092 | S56: 0.1039593289
C57: Midlands | D57: NHS Black Country ICB | E57: RL4 | F57: The Royal Wolverhampton NHS Trust | G57: 0.0829 | H57: 0.0889 | I57: 0.0966 | J57: 0.0896 | K57: 0.0837 | L57: 0.1043 | M57: 0.1081 | N57: 0.1222 | O57: 0.1414 | P57: 0.1243 | Q57: 0.1114 | R57: 0.1028 | S57: 0.1043792947
C58: Midlands | D58: NHS Shropshire, Telford and Wrekin ICB | E58: RXW | F58: The Shrewsbury and Telford Hospital NHS Trust | G58: 0.2297 | H58: 0.2345 | I58: 0.2163 | J58: ** | K58: ** | L58: ** | M58: ** | N58: ** | O58: ** | P58: ** | Q58: ** | R58: ** | S58: **
C59: Midlands | D59: NHS Lincolnshire ICB | E59: RWD | F59: United Lincolnshire Hospitals NHS Trust | G59: 0.1722 | H59: 0.2185 | I59: 0.219 | J59: 0.2105 | K59: 0.1772 | L59: 0.1988 | M59: 0.2142 | N59: 0.1782 | O59: 0.1862 | P59: 0.225 | Q59: 0.2051 | R59: 0.1147 | S59: 0.1930173498
C60: Midlands | D60: NHS Birmingham and Solihull ICB | E60: RRK | F60: University Hospitals Birmingham NHS Foundation Trust | G60: 0.1596 | H60: 0.157 | I60: 0.1459 | J60: 0.1325 | K60: 0.1394 | L60: 0.1524 | M60: 0.1554 | N60: 0.1543 | O60: 0.1554 | P60: 0.1577 | Q60: 0.1547 | R60: 0.1428 | S60: 0.1506149569
C61: Midlands | D61: NHS Coventry and Warwickshire ICB | E61: RKB | F61: University Hospitals Coventry and Warwickshire NHS Trust | G61: 0.1173 | H61: 0.1118 | I61: 0.1677 | J61: 0.1588 | K61: 0.1351 | L61: 0.1484 | M61: 0.1665 | N61: 0.1819 | O61: 0.1646 | P61: 0.1576 | Q61: 0.1623 | R61: 0.1198 | S61: 0.1489270578
C62: Midlands | D62: NHS Derby and Derbyshire ICB | E62: RTG | F62: University Hospitals of Derby and Burton NHS Foundation Trust | G62: 0.0964 | H62: 0.1074 | I62: 0.1172 | J62: 0.1229 | K62: 0.1026 | L62: 0.1227 | M62: 0.1491 | N62: 0.1609 | O62: 0.1693 | P62: 0.1535 | Q62: 0.1518 | R62: 0.1133 | S62: 0.13043015
C63: Midlands | D63: NHS Leicester, Leicestershire and Rutland ICB | E63: RWE | F63: University Hospitals of Leicester NHS Trust | G63: 0.1189 | H63: 0.093 | I63: 0.1033 | J63: 0.1161 | K63: 0.1081 | L63: 0.1137 | M63: 0.1262 | N63: 0.1182 | O63: 0.1146 | P63: 0.1307 | Q63: 0.1172 | R63: 0.1124 | S63: 0.1142231019
C64: Midlands | D64: NHS Staffordshire and Stoke-on-Trent ICB | E64: RJE | F64: University Hospitals of North Midlands NHS Trust | G64: 0.138 | H64: 0.1332 | I64: 0.1411 | J64: 0.1413 | K64: 0.0906 | L64: 0.1282 | M64: 0.181 | N64: 0.1732 | O64: 0.1904 | P64: 0.1836 | Q64: 0.1858 | R64: 0.1445 | S64: 0.152677309
C65: Midlands | D65: NHS Black Country ICB | E65: RBK | F65: Walsall Healthcare NHS Trust | G65: 0.042 | H65: 0.0358 | I65: 0.035 | J65: 0.0238 | K65: 0.0155 | L65: 0.0474 | M65: 0.054 | N65: 0.0587 | O65: 0.0777 | P65: 0.0996 | Q65: 0.1035 | R65: 0.076 | S65: 0.05592003353
C66: Midlands | D66: NHS Herefordshire and Worcestershire ICB | E66: RWP | F66: Worcestershire Acute Hospitals NHS Trust | G66: 0.1663 | H66: 0.1624 | I66: 0.1538 | J66: 0.1417 | K66: 0.147 | L66: 0.1652 | M66: 0.179 | N66: 0.1953 | O66: 0.2187 | P66: 0.2111 | Q66: 0.1811 | R66: 0.1676 | S66: 0.1740512162
C67: Midlands | D67: NHS Herefordshire and Worcestershire ICB | E67: RLQ | F67: Wye Valley NHS Trust | G67: 0.1351 | H67: 0.145 | I67: 0.1515 | J67: 0.144 | K67: 0.1389 | L67: 0.1543 | M67: 0.1523 | N67: 0.1439 | O67: 0.1474 | P67: 0.1727 | Q67: 0.1504 | R67: 0.154 | S67: 0.1489023096
C68: North East and Yorkshire | D68: NHS West Yorkshire ICB | E68: RCF | F68: Airedale NHS Foundation Trust | G68: 0.0536 | H68: 0.0605 | I68: 0.0765 | J68: 0.0524 | K68: 0.0627 | L68: 0.0618 | M68: 0.096 | N68: 0.0864 | O68: 0.0834 | P68: 0.0994 | Q68: 0.0923 | R68: 0.0867 | S68: 0.07565515325
C69: North East and Yorkshire | D69: NHS South Yorkshire ICB | E69: RFF | F69: Barnsley Hospital NHS Foundation Trust | G69: 0.0127 | H69: 0.0106 | I69: 0.0148 | J69: 0.0077 | K69: 0.0054 | L69: 0.0223 | M69: 0.0233 | N69: 0.0277 | O69: 0.0351 | P69: 0.0373 | Q69: 0.0445 | R69: 0.0049 | S69: 0.02023651367
C70: North East and Yorkshire | D70: NHS West Yorkshire ICB | E70: RAE | F70: Bradford Teaching Hospitals NHS Foundation Trust | G70: 0.0528 | H70: 0.0638 | I70: 0.0432 | J70: 0.0562 | K70: 0.0549 | L70: 0.0577 | M70: 0.0634 | N70: 0.0681 | O70: 0.0713 | P70: 0.0764 | Q70: 0.0674 | R70: 0.0544 | S70: 0.06101400184
C71: North East and Yorkshire | D71: NHS West Yorkshire ICB | E71: RWY | F71: Calderdale and Huddersfield NHS Foundation Trust | G71: 0.0503 | H71: 0.0398 | I71: 0.0348 | J71: 0.032 | K71: 0.0281 | L71: 0.0378 | M71: 0.0467 | N71: 0.0436 | O71: 0.0532 | P71: 0.0607 | Q71: 0.0491 | R71: 0.0257 | S71: 0.04162190453
C72: North East and Yorkshire | D72: NHS North East and North Cumbria ICB | E72: RXP | F72: County Durham and Darlington NHS Foundation Trust | G72: 0.138 | H72: 0.142 | I72: 0.1119 | J72: 0.1355 | K72: 0.1144 | L72: 0.1537 | M72: 0.1403 | N72: 0.1308 | O72: 0.172 | P72: 0.1709 | Q72: 0.1265 | R72: 0.0843 | S72: 0.1348196328
C73: North East and Yorkshire | D73: NHS South Yorkshire ICB | E73: RP5 | F73: Doncaster and Bassetlaw Teaching Hospitals NHS Foundation Trust | G73: 0.0368 | H73: 0.0463 | I73: 0.0336 | J73: 0.0593 | K73: 0.0382 | L73: 0.0491 | M73: 0.0616 | N73: 0.0435 | O73: 0.0578 | P73: 0.0549 | Q73: 0.0393 | R73: 0.03 | S73: 0.04597032296
C74: North East and Yorkshire | D74: NHS North East and North Cumbria ICB | E74: RR7 | F74: Gateshead Health NHS Foundation Trust | G74: 0.0643 | H74: 0.0707 | I74: 0.0392 | J74: 0.0885 | K74: 0.0736 | L74: 0.0689 | M74: 0.1157 | N74: 0.0802 | O74: 0.1569 | P74: 0.0767 | Q74: 0.0395 | R74: 0.0121 | S74: 0.07556578443
C75: North East and Yorkshire | D75: NHS Humber and North Yorkshire ICB | E75: RCD | F75: Harrogate and District NHS Foundation Trust | G75: 0.0499 | H75: 0.0542 | I75: 0.0464 | J75: 0.0466 | K75: 0.0178 | L75: 0.0243 | M75: 0.0622 | N75: 0.0858 | O75: 0.1218 | P75: 0.0781 | Q75: 0.0435 | R75: 0.0286 | S75: 0.05516524422
C76: North East and Yorkshire | D76: NHS Humber and North Yorkshire ICB | E76: RWA | F76: Hull University Teaching Hospitals NHS Trust | G76: 0.1165 | H76: 0.1036 | I76: 0.1211 | J76: 0.072 | K76: 0.0822 | L76: 0.1402 | M76: 0.1505 | N76: 0.1379 | O76: 0.1974 | P76: 0.1708 | Q76: 0.1532 | R76: 0.1407 | S76: 0.1311082759
C77: North East and Yorkshire | D77: NHS West Yorkshire ICB | E77: RR8 | F77: Leeds Teaching Hospitals NHS Trust | G77: 0.0763 | H77: 0.0865 | I77: 0.0739 | J77: 0.0699 | K77: 0.0442 | L77: 0.0711 | M77: 0.0891 | N77: 0.0798 | O77: 0.1016 | P77: 0.1027 | Q77: 0.1016 | R77: 0.0626 | S77: 0.08017851779
C78: North East and Yorkshire | D78: NHS West Yorkshire ICB | E78: RXF | F78: Mid Yorkshire Hospitals NHS Trust | G78: 0.1214 | H78: 0.1108 | I78: 0.1174 | J78: 0.1227 | K78: 0.113 | L78: 0.0996 | M78: 0.1206 | N78: 0.1346 | O78: 0.1561 | P78: 0.1712 | Q78: 0.1277 | R78: 0.0962 | S78: 0.1239806713
C79: North East and Yorkshire | D79: NHS North East and North Cumbria ICB | E79: RNN | F79: North Cumbria Integrated Care NHS Foundation Trust | G79: 0.1183 | H79: 0.1186 | I79: 0.0955 | J79: 0.0819 | K79: 0.0827 | L79: 0.1452 | M79: 0.1467 | N79: 0.1022 | O79: 0.0981 | P79: 0.1467 | Q79: 0.1231 | R79: 0.1022 | S79: 0.1130743667
C80: North East and Yorkshire | D80: NHS North East and North Cumbria ICB | E80: RVW | F80: North Tees and Hartlepool NHS Foundation Trust | G80: 0.0083 | H80: 0.0074 | I80: 0.0004 | J80: 0.005 | K80: 0.0027 | L80: 0.0138 | M80: 0.0197 | N80: 0.0355 | O80: 0.0626 | P80: 0.0633 | Q80: 0.0101 | R80: 0.0164 | S80: 0.02119987458
C81: North East and Yorkshire | D81: NHS Humber and North Yorkshire ICB | E81: RJL | F81: Northern Lincolnshire and Goole NHS Foundation Trust | G81: 0.1512 | H81: 0.1807 | I81: 0.1838 | J81: 0.1947 | K81: 0.1528 | L81: 0.1496 | M81: 0.1814 | N81: 0.1474 | O81: 0.1816 | P81: 0.2072 | Q81: 0.1756 | R81: 0.1508 | S81: 0.1714557941
C82: North East and Yorkshire | D82: NHS North East and North Cumbria ICB | E82: RTF | F82: Northumbria Healthcare NHS Foundation Trust | G82: 0.0112 | H82: 0.0104 | I82: 0.0072 | J82: 0.0069 | K82: 0.001 | L82: 0.0086 | M82: 0.0124 | N82: 0.0064 | O82: 0.0304 | P82: 0.0158 | Q82: 0.0135 | R82: 0.0063 | S82: 0.01099127391
C83: North East and Yorkshire | D83: NHS South Yorkshire ICB | E83: RCU | F83: Sheffield Children's NHS Foundation Trust | G83: 0.0002 | H83: 0.0002 | I83: 0.0002 | J83: 0.0002 | K83: 0 | L83: 0 | M83: 0 | N83: 0.0002 | O83: 0 | P83: 0 | Q83: 0.0002 | R83: 0 | S83: 9.636851319e-05
C84: North East and Yorkshire | D84: NHS South Yorkshire ICB | E84: RHQ | F84: Sheffield Teaching Hospitals NHS Foundation Trust | G84: 0.0439 | H84: 0.0463 | I84: 0.025 | J84: 0.0457 | K84: 0.0499 | L84: 0.0579 | M84: 0.0841 | N84: 0.0903 | O84: 0.101 | P84: 0.0829 | Q84: 0.054 | R84: 0.0456 | S84: 0.0605630452
C85: North East and Yorkshire | D85: NHS North East and North Cumbria ICB | E85: RTR | F85: South Tees Hospitals NHS Foundation Trust | G85: 0.044 | H85: 0.0423 | I85: 0.0342 | J85: 0.0215 | K85: 0.0163 | L85: 0.0229 | M85: 0.0786 | N85: 0.0409 | O85: 0.0979 | P85: 0.1156 | Q85: 0.0506 | R85: 0.0427 | S85: 0.05088795537
C86: North East and Yorkshire | D86: NHS North East and North Cumbria ICB | E86: R0B | F86: South Tyneside and Sunderland NHS Foundation Trust | G86: 0.0237 | H86: 0.0182 | I86: 0.0156 | J86: 0.0119 | K86: 0.0151 | L86: 0.0136 | M86: 0.0373 | N86: 0.0374 | O86: 0.1053 | P86: 0.0965 | Q86: 0.0452 | R86: 0.0159 | S86: 0.03653708953
C87: North East and Yorkshire | D87: NHS North East and North Cumbria ICB | E87: RTD | F87: The Newcastle Upon Tyne Hospitals NHS Foundation Trust | G87: 0.0473 | H87: 0.0379 | I87: 0.0283 | J87: 0.0249 | K87: 0.0173 | L87: 0.0151 | M87: 0.0304 | N87: 0.0332 | O87: 0.0383 | P87: 0.0296 | Q87: 0.0155 | R87: 0.0195 | S87: 0.02827125444
C88: North East and Yorkshire | D88: NHS South Yorkshire ICB | E88: RFR | F88: The Rotherham NHS Foundation Trust | G88: 0.0346 | H88: 0.0486 | I88: 0.0203 | J88: 0.0243 | K88: 0.0275 | L88: 0.0316 | M88: 0.0564 | N88: 0.0464 | O88: 0.0655 | P88: 0.0911 | Q88: 0.0546 | R88: 0.0434 | S88: 0.04567034437
C89: North East and Yorkshire | D89: NHS Humber and North Yorkshire ICB | E89: RCB | F89: York and Scarborough Teaching Hospitals NHS Foundation Trust | G89: 0.202 | H89: 0.1865 | I89: 0.1698 | J89: 0.1608 | K89: 0.1513 | L89: 0.1916 | M89: 0.212 | N89: 0.2077 | O89: 0.2294 | P89: 0.2197 | Q89: 0.163 | R89: 0.1557 | S89: 0.1863633
C90: North West | D90: NHS Cheshire and Merseyside ICB | E90: RBS | F90: Alder Hey Children's NHS Foundation Trust | G90: 0.0009 | H90: 0.0007 | I90: 0.0012 | J90: 0.0002 | K90: 0 | L90: 0.0019 | M90: 0.0005 | N90: 0.0059 | O90: 0.0024 | P90: 0.0028 | Q90: 0.002 | R90: 0.0014 | S90: 0.001737443352
C91: North West | D91: NHS Lancashire and South Cumbria ICB | E91: RXL | F91: Blackpool Teaching Hospitals NHS Foundation Trust | G91: 0.2508 | H91: 0.2499 | I91: 0.2605 | J91: 0.2508 | K91: 0.2427 | L91: 0.2602 | M91: 0.2704 | N91: 0.2757 | O91: 0.2753 | P91: 0.296 | Q91: 0.2739 | R91: 0.2583 | S91: 0.2634037267
C92: North West | D92: NHS Greater Manchester ICB | E92: RMC | F92: Bolton NHS Foundation Trust | G92: 0.1735 | H92: 0.1678 | I92: 0.1631 | J92: 0.1469 | K92: 0.1248 | L92: 0.1469 | M92: 0.1682 | N92: 0.1526 | O92: 0.1688 | P92: 0.1365 | Q92: 0.1488 | R92: 0.0776 | S92: 0.1478496868
C93: North West | D93: NHS Cheshire and Merseyside ICB | E93: RJR | F93: Countess of Chester Hospital NHS Foundation Trust | G93: 0.2386 | H93: 0.2477 | I93: 0.2508 | J93: 0.2605 | K93: 0.2789 | L93: 0.2483 | M93: 0.2809 | N93: 0.253 | O93: 0.2666 | P93: 0.2812 | Q93: 0.2505 | R93: 0.2441 | S93: 0.2582446633
C94: North West | D94: NHS Cheshire and Merseyside ICB | E94: RJN | F94: East Cheshire NHS Trust | G94: 0.1101 | H94: 0.1636 | I94: 0.1385 | J94: 0.1325 | K94: 0.0983 | L94: 0.1316 | M94: 0.1345 | N94: 0.115 | O94: 0.1695 | P94: 0.1768 | Q94: 0.1388 | R94: 0.1627 | S94: 0.1396708532
C95: North West | D95: NHS Lancashire and South Cumbria ICB | E95: RXR | F95: East Lancashire Hospitals NHS Trust | G95: 0.2399 | H95: 0.1735 | I95: 0.1741 | J95: 0.1492 | K95: 0.151 | L95: 0.1803 | M95: 0.1729 | N95: 0.1717 | O95: 0.1946 | P95: 0.1958 | Q95: 0.1565 | R95: 0.1553 | S95: 0.1757244297
C96: North West | D96: NHS Lancashire and South Cumbria ICB | E96: RXN | F96: Lancashire Teaching Hospitals NHS Foundation Trust | G96: 0.137 | H96: 0.1237 | I96: 0.0973 | J96: 0.1116 | K96: 0.1145 | L96: 0.13 | M96: 0.1337 | N96: 0.1217 | O96: 0.1417 | P96: 0.1666 | Q96: 0.165 | R96: 0.1352 | S96: 0.131050751
C97: North West | D97: NHS Cheshire and Merseyside ICB | E97: REM | F97: Liverpool University Hospitals NHS Foundation Trust | G97: 0.1622 | H97: 0.1656 | I97: 0.1431 | J97: 0.1365 | K97: 0.134 | L97: 0.1577 | M97: 0.1603 | N97: 0.1749 | O97: 0.1858 | P97: 0.1634 | Q97: 0.1599 | R97: 0.1532 | S97: 0.1580702108
C98: North West | D98: NHS Greater Manchester ICB | E98: R0A | F98: Manchester University NHS Foundation Trust | G98: 0.0867 | H98: 0.091 | I98: 0.0788 | J98: 0.0751 | K98: 0.05 | L98: 0.0724 | M98: 0.0696 | N98: 0.0792 | O98: 0.0969 | P98: 0.0988 | Q98: 0.0713 | R98: 0.0424 | S98: 0.07623206389
C99: North West | D99: NHS Cheshire and Merseyside ICB | E99: RBN | F99: Mersey and West Lancashire Teaching Hospitals NHS Trust | G99: 0.1814 | H99: 0.1832 | I99: 0.171 | J99: 0.1746 | K99: 0.1642 | L99: 0.1723 | M99: 0.1793 | N99: 0.1735 | O99: 0.187 | P99: 0.1884 | Q99: 0.1825 | R99: 0.1779 | S99: 0.178003971
C100: North West | D100: NHS Cheshire and Merseyside ICB | E100: RBT | F100: Mid Cheshire Hospitals NHS Foundation Trust | G100: 0.136 | H100: 0.1651 | I100: 0.1637 | J100: 0.1236 | K100: 0.1484 | L100: 0.1712 | M100: 0.1697 | N100: 0.1486 | O100: 0.177 | P100: 0.1901 | Q100: 0.168 | R100: 0.1404 | S100: 0.1584136836
C101: North West | D101: NHS Greater Manchester ICB | E101: RM3 | F101: Northern Care Alliance NHS Foundation Trust | G101: 0.1149 | H101: 0.1121 | I101: 0.1254 | J101: 0.1117 | K101: 0.1077 | L101: 0.1154 | M101: 0.1426 | N101: 0.1389 | O101: 0.1328 | P101: 0.1433 | Q101: 0.1318 | R101: 0.1274 | S101: 0.1254622615
C102: North West | D102: NHS Greater Manchester ICB | E102: RWJ | F102: Stockport NHS Foundation Trust | G102: 0.1236 | H102: 0.1329 | I102: 0.1015 | J102: 0.1267 | K102: 0.0673 | L102: 0.1177 | M102: 0.1347 | N102: 0.1378 | O102: 0.1448 | P102: 0.1554 | Q102: 0.0999 | R102: 0.1194 | S102: 0.12232312
C103: North West | D103: NHS Greater Manchester ICB | E103: RMP | F103: Tameside and Glossop Integrated Care NHS Foundation Trust | G103: 0.0752 | H103: 0.0766 | I103: 0.0649 | J103: 0.1019 | K103: 0.0722 | L103: 0.1043 | M103: 0.1173 | N103: 0.1135 | O103: 0.1528 | P103: 0.1489 | Q103: 0.106 | R103: 0.0723 | S103: 0.1010204755
C104: North West | D104: NHS Lancashire and South Cumbria ICB | E104: RTX | F104: University Hospitals of Morecambe Bay NHS Foundation Trust | G104: 0.068 | H104: 0.0651 | I104: 0.0608 | J104: 0.0625 | K104: 0.0506 | L104: 0.0669 | M104: 0.0657 | N104: 0.0707 | O104: 0.0959 | P104: 0.0993 | Q104: 0.0755 | R104: 0.0934 | S104: 0.07279704038
C105: North West | D105: NHS Cheshire and Merseyside ICB | E105: RWW | F105: Warrington and Halton Teaching Hospitals NHS Foundation Trust | G105: 0.1942 | H105: 0.1993 | I105: 0.1895 | J105: 0.1873 | K105: 0.1804 | L105: 0.1892 | M105: 0.2308 | N105: 0.1766 | O105: 0.2256 | P105: 0.2644 | Q105: 0.2403 | R105: 0.1985 | S105: 0.2060623931
C106: North West | D106: NHS Cheshire and Merseyside ICB | E106: RBL | F106: Wirral University Teaching Hospital NHS Foundation Trust | G106: 0.1588 | H106: 0.1889 | I106: 0.2007 | J106: 0.2215 | K106: 0.2055 | L106: 0.2133 | M106: 0.2166 | N106: 0.2048 | O106: 0.2489 | P106: 0.2442 | Q106: 0.2355 | R106: 0.2157 | S106: 0.2122157312
C107: North West | D107: NHS Greater Manchester ICB | E107: RRF | F107: Wrightington, Wigan and Leigh NHS Foundation Trust | G107: 0.2016 | H107: 0.2025 | I107: 0.1856 | J107: 0.1803 | K107: 0.1855 | L107: 0.2063 | M107: 0.2001 | N107: 0.2169 | O107: 0.2032 | P107: 0.2262 | Q107: 0.201 | R107: 0.2096 | S107: 0.2015734389
C108: South East | D108: NHS Surrey Heartlands ICB | E108: RTK | F108: Ashford and St Peter's Hospitals NHS Foundation Trust | G108: 0.0882 | H108: 0.1162 | I108: 0.1034 | J108: 0.0934 | K108: 0.0842 | L108: 0.1073 | M108: 0.1106 | N108: 0.0955 | O108: 0.1037 | P108: 0.1093 | Q108: 0.1111 | R108: 0.0973 | S108: 0.1018065424
C109: South East | D109: NHS Buckinghamshire, Oxfordshire and Berkshire West ICB | E109: RXQ | F109: Buckinghamshire Healthcare NHS Trust | G109: 0.0734 | H109: 0.0664 | I109: 0.0697 | J109: 0.0706 | K109: 0.0607 | L109: 0.0874 | M109: 0.0865 | N109: 0.0764 | O109: 0.0842 | P109: 0.0775 | Q109: 0.0727 | R109: 0.0609 | S109: 0.07406027849
C110: South East | D110: NHS Kent and Medway ICB | E110: RN7 | F110: Dartford and Gravesham NHS Trust | G110: 0.0856 | H110: 0.0535 | I110: 0.0807 | J110: 0.0805 | K110: 0.0542 | L110: 0.0855 | M110: 0.0794 | N110: 0.0788 | O110: 0.0917 | P110: 0.1043 | Q110: 0.1029 | R110: 0.0878 | S110: 0.08211104414
C111: South East | D111: NHS Kent and Medway ICB | E111: RVV | F111: East Kent Hospitals University NHS Foundation Trust | G111: 0.1972 | H111: 0.1933 | I111: 0.1929 | J111: 0.1855 | K111: 0.1843 | L111: 0.1796 | M111: 0.1871 | N111: 0.1878 | O111: 0.1942 | P111: 0.2126 | Q111: 0.2073 | R111: 0.208 | S111: 0.1940346365
C112: South East | D112: NHS Sussex ICB | E112: RXC | F112: East Sussex Healthcare NHS Trust | G112: 0.0714 | H112: 0.0671 | I112: 0.0713 | J112: 0.0765 | K112: 0.0884 | L112: 0.1052 | M112: 0.1168 | N112: 0.101 | O112: 0.1164 | P112: 0.1268 | Q112: 0.1268 | R112: 0.1144 | S112: 0.09759017627
C113: South East | D113: NHS Frimley ICB | E113: RDU | F113: Frimley Health NHS Foundation Trust | G113: 0.0942 | H113: 0.093 | I113: 0.101 | J113: 0.0893 | K113: 0.0973 | L113: 0.1084 | M113: 0.1156 | N113: 0.1083 | O113: 0.1045 | P113: 0.1148 | Q113: 0.1256 | R113: 0.1038 | S113: 0.1045499643
C114: South East | D114: NHS Hampshire and Isle Of Wight ICB | E114: RN5 | F114: Hampshire Hospitals NHS Foundation Trust | G114: 0.0396 | H114: 0.0504 | I114: 0.0299 | J114: 0.0365 | K114: 0.0485 | L114: 0.0487 | M114: 0.053 | N114: 0.0907 | O114: 0.0968 | P114: 0.1088 | Q114: 0.0897 | R114: 0.0626 | S114: 0.06139763655
C115: South East | D115: NHS Hampshire and Isle Of Wight ICB | E115: R1F | F115: Isle of Wight NHS Trust | G115: 0.1002 | H115: 0.0726 | I115: 0.1009 | J115: 0.1126 | K115: 0.0718 | L115: 0.1071 | M115: 0.1164 | N115: 0.0655 | O115: 0.0952 | P115: 0.1303 | Q115: 0.107 | R115: 0.121 | S115: 0.09982644797
C116: South East | D116: NHS Kent and Medway ICB | E116: RWF | F116: Maidstone and Tunbridge Wells NHS Trust | G116: 0.0578 | H116: 0.0576 | I116: 0.0622 | J116: 0.0701 | K116: 0.0443 | L116: 0.0657 | M116: 0.0783 | N116: 0.0686 | O116: 0.0783 | P116: 0.0937 | Q116: 0.0808 | R116: 0.0576 | S116: 0.06790547142
C117: South East | D117: NHS Kent and Medway ICB | E117: RPA | F117: Medway NHS Foundation Trust | G117: 0.1067 | H117: 0.1145 | I117: 0.1137 | J117: 0.1232 | K117: 0.1294 | L117: 0.1241 | M117: 0.1236 | N117: 0.1329 | O117: 0.1519 | P117: 0.159 | Q117: 0.1418 | R117: 0.1318 | S117: 0.1289212673
C118: South East | D118: NHS Buckinghamshire, Oxfordshire and Berkshire West ICB | E118: RTH | F118: Oxford University Hospitals NHS Foundation Trust | G118: 0.0436 | H118: 0.0399 | I118: 0.0341 | J118: 0.0296 | K118: 0.0452 | L118: 0.0444 | M118: 0.0493 | N118: 0.0564 | O118: 0.0604 | P118: 0.0576 | Q118: 0.051 | R118: 0.0425 | S118: 0.0462564636
C119: South East | D119: NHS Hampshire and Isle Of Wight ICB | E119: RHU | F119: Portsmouth Hospitals University National Health Service Trust | G119: 0.1223 | H119: 0.145 | I119: 0.1094 | J119: 0.1183 | K119: 0.1344 | L119: 0.1754 | M119: 0.1572 | N119: 0.1512 | O119: 0.1644 | P119: 0.1789 | Q119: 0.1656 | R119: 0.1619 | S119: 0.1483348123
C120: South East | D120: NHS Buckinghamshire, Oxfordshire and Berkshire West ICB | E120: RHW | F120: Royal Berkshire NHS Foundation Trust | G120: 0.0534 | H120: 0.0422 | I120: 0.0291 | J120: 0.0311 | K120: 0.0243 | L120: 0.0396 | M120: 0.0416 | N120: 0.0381 | O120: 0.0585 | P120: 0.0676 | Q120: 0.0412 | R120: 0.0465 | S120: 0.04275664423
C121: South East | D121: NHS Surrey Heartlands ICB | E121: RA2 | F121: Royal Surrey County Hospital NHS Foundation Trust | G121: 0.0404 | H121: 0.0559 | I121: 0.0245 | J121: 0.0225 | K121: 0.0101 | L121: 0.0342 | M121: 0.0485 | N121: 0.0249 | O121: 0.0503 | P121: 0.0561 | Q121: 0.0491 | R121: 0.0337 | S121: 0.03764543281
C122: South East | D122: NHS Surrey Heartlands ICB | E122: RTP | F122: Surrey and Sussex Healthcare NHS Trust | G122: 0.1128 | H122: 0.1174 | I122: 0.1008 | J122: 0.0883 | K122: 0.079 | L122: 0.1304 | M122: 0.1262 | N122: 0.1302 | O122: 0.1395 | P122: 0.1492 | Q122: 0.1327 | R122: 0.1232 | S122: 0.1191869319
C123: South East | D123: NHS Hampshire and Isle Of Wight ICB | E123: RHM | F123: University Hospital Southampton NHS Foundation Trust | G123: 0.0226 | H123: 0.0163 | I123: 0.0173 | J123: 0.0088 | K123: 0.0124 | L123: 0.021 | M123: 0.0186 | N123: 0.0218 | O123: 0.0205 | P123: 0.0203 | Q123: 0.0266 | R123: 0.0304 | S123: 0.01967124425
C124: South East | D124: NHS Sussex ICB | E124: RYR | F124: University Hospitals Sussex NHS Foundation Trust | G124: 0.1706 | H124: 0.1595 | I124: 0.1509 | J124: 0.155 | K124: 0.137 | L124: 0.153 | M124: 0.1384 | N124: 0.1205 | O124: 0.1296 | P124: 0.1451 | Q124: 0.1325 | R124: 0.1021 | S124: 0.1396967891
C125: South West | D125: NHS Dorset ICB | E125: RBD | F125: Dorset County Hospital NHS Foundation Trust | G125: 0.065 | H125: 0.0676 | I125: 0.1134 | J125: 0.0812 | K125: 0.0686 | L125: 0.0718 | M125: 0.0803 | N125: 0.0771 | O125: 0.1167 | P125: 0.1594 | Q125: 0.1056 | R125: 0.1057 | S125: 0.0920205808
C126: South West | D126: NHS Gloucestershire ICB | E126: RTE | F126: Gloucestershire Hospitals NHS Foundation Trust | G126: 0.1392 | H126: 0.1293 | I126: 0.1282 | J126: 0.1093 | K126: 0.1071 | L126: 0.1098 | M126: 0.118 | N126: 0.1107 | O126: 0.1139 | P126: 0.119 | Q126: 0.1142 | R126: 0.1074 | S126: 0.117153113
C127: South West | D127: NHS Bath and North East Somerset, Swindon and Wiltshire ICB | E127: RN3 | F127: Great Western Hospitals NHS Foundation Trust | G127: 0.1569 | H127: 0.1362 | I127: 0.1416 | J127: 0.1073 | K127: 0.0564 | L127: 0.0746 | M127: 0.1113 | N127: 0.1457 | O127: 0.1508 | P127: 0.1967 | Q127: 0.1752 | R127: 0.1612 | S127: 0.1340684585
C128: South West | D128: NHS Bristol, North Somerset and South Gloucestershire ICB | E128: RVJ | F128: North Bristol NHS Trust | G128: 0.0807 | H128: 0.0647 | I128: 0.0715 | J128: 0.0451 | K128: 0.0461 | L128: 0.1008 | M128: 0.0958 | N128: 0.1163 | O128: 0.085 | P128: 0.1204 | Q128: 0.1213 | R128: 0.1037 | S128: 0.08705842327
C129: South West | D129: NHS Cornwall and The Isles Of Scilly ICB | E129: REF | F129: Royal Cornwall Hospitals NHS Trust | G129: 0.1341 | H129: 0.1579 | I129: 0.1686 | J129: 0.168 | K129: 0.147 | L129: 0.1973 | M129: 0.2255 | N129: 0.2016 | O129: 0.1572 | P129: 0.1863 | Q129: 0.1322 | R129: 0.1525 | S129: 0.1688132656
C130: South West | D130: NHS Devon ICB | E130: RH8 | F130: Royal Devon University Healthcare NHS Foundation Trust | G130: 0.0184 | H130: 0.0231 | I130: 0.0274 | J130: 0.0206 | K130: 0.0255 | L130: 0.0333 | M130: 0.0458 | N130: 0.0428 | O130: 0.0612 | P130: 0.0765 | Q130: 0.0532 | R130: 0.052 | S130: 0.0395971038
C131: South West | D131: NHS Bath and North East Somerset, Swindon and Wiltshire ICB | E131: RD1 | F131: Royal United Hospitals Bath NHS Foundation Trust | G131: 0.0768 | H131: 0.0445 | I131: 0.0551 | J131: 0.0418 | K131: 0.0403 | L131: 0.0486 | M131: 0.076 | N131: 0.0893 | O131: 0.0864 | P131: 0.098 | Q131: 0.1062 | R131: 0.0957 | S131: 0.07106403941
C132: South West | D132: NHS Bath and North East Somerset, Swindon and Wiltshire ICB | E132: RNZ | F132: Salisbury NHS Foundation Trust | G132: 0.0691 | H132: 0.0422 | I132: 0.0762 | J132: 0.0438 | K132: 0.041 | L132: 0.0633 | M132: 0.0577 | N132: 0.0804 | O132: 0.0695 | P132: 0.078 | Q132: 0.1037 | R132: 0.0872 | S132: 0.06724408615
C133: South West | D133: NHS Somerset ICB | E133: RH5 | F133: Somerset NHS Foundation Trust | G133: 0.0179 | H133: 0.0177 | I133: 0.0211 | J133: 0.0259 | K133: 0.0243 | L133: 0.0333 | M133: 0.0397 | N133: 0.0504 | O133: 0.088 | P133: 0.0864 | Q133: 0.0736 | R133: 0.0332 | S133: 0.04164371196
C134: South West | D134: NHS Devon ICB | E134: RA9 | F134: Torbay and South Devon NHS Foundation Trust | G134: 0.1129 | H134: 0.1164 | I134: 0.1016 | J134: 0.0861 | K134: 0.0847 | L134: 0.1232 | M134: 0.1528 | N134: 0.1326 | O134: 0.121 | P134: 0.1362 | Q134: 0.1171 | R134: 0.0919 | S134: 0.1141130599
C135: South West | D135: NHS Bristol, North Somerset and South Gloucestershire ICB | E135: RA7 | F135: University Hospitals Bristol and Weston NHS Foundation Trust | G135: 0.0411 | H135: 0.039 | I135: 0.0341 | J135: 0.0241 | K135: 0.0151 | L135: 0.034 | M135: 0.0488 | N135: 0.0542 | O135: 0.0701 | P135: 0.0826 | Q135: 0.0742 | R135: 0.0524 | S135: 0.04750504869
C136: South West | D136: NHS Dorset ICB | E136: R0D | F136: University Hospitals Dorset NHS Foundation Trust | G136: 0.0531 | H136: 0.0521 | I136: 0.0527 | J136: 0.0465 | K136: 0.0274 | L136: 0.0495 | M136: 0.0613 | N136: 0.0449 | O136: 0.0878 | P136: 0.0851 | Q136: 0.0713 | R136: 0.0673 | S136: 0.05804456923
C137: South West | D137: NHS Devon ICB | E137: RK9 | F137: University Hospitals Plymouth NHS Trust | G137: 0.1927 | H137: 0.1699 | I137: 0.153 | J137: 0.1641 | K137: 0.1135 | L137: 0.1343 | M137: 0.1672 | N137: 0.1675 | O137: 0.1649 | P137: 0.1983 | Q137: 0.1703 | R137: 0.1843 | S137: 0.1647924476
C139: Notes:
C140: 1. All data is rounded to the nearest 5 attendances and any value less than 8 is suppressed (*). From April 2024 this has not been applied to National Level figures.
C141: 2. Totals may not equal the sum of individual values due to rounding.
C144: 3. A subset of providers are used for each metrc depending on whether they have the require field completeness. This subset may differ each month. For further details of providers included in each subset see the data completeness and quality tab
C145: 4. The latest period is published as provisional and will become final the following month

Sheet Sheet1 (hidden)
D1: Live | G1: Published
B2: Org Code | C2: Provider | D2: FYEAR 23/24 | E2: FYEAR24/25 | F2: Diff | J2: Top 10 Most Improved_Live | K2: Top 10 Most Improved_Published | L2: Lowest Perf_Live | M2: Lowest Perf_Published | N2: DQ
B3: RK5 | C3: =VLOOKUP(B3,#REF!,4,FALSE) ->  | D3: =VLOOKUP(B3,'FY 23-24'!$E$16:$S$137,15,FALSE) -> 0.04722412196 | E3: =VLOOKUP(B3,'FY 24-25'!$E$16:$S$135,15,FALSE) -> 0.05163215885 | F3: =E3-D3 -> 0.004408036886 | G3: 0.0492766958 | H3: 0.05745879192 | I3: =H3-G3 -> 0.008182096115 | J3: =RANK(F3,$F$3:$F$123,1) ->  | K3: =RANK(I3,$I$3:$I$123,1) -> 66 | L3: =RANK(E3,$E$3:$E$123,2) ->  | M3: =RANK(H3,$H$3:$H$123,2) -> 30 | N3: =IF(E3<D3,1,0) -> 0
B4: RXQ | C4: =VLOOKUP(B4,#REF!,4,FALSE) ->  | D4: =VLOOKUP(B4,'FY 23-24'!$E$16:$S$137,15,FALSE) -> 0.1486008225 | E4: =VLOOKUP(B4,'FY 24-25'!$E$16:$S$135,15,FALSE) -> 0.07406027849 | F4: -0.07454054397 | G4: 0.1138812592 | H4: 0.07484860719 | I4: -0.03903265206 | K4: 3 | M4: 43 | N4: 1
B5: R1F | C5: =VLOOKUP(B5,#REF!,4,FALSE) ->  | D5: =VLOOKUP(B5,'FY 23-24'!$E$16:$S$137,15,FALSE) -> 0.1560025244 | E5: =VLOOKUP(B5,'FY 24-25'!$E$16:$S$135,15,FALSE) -> 0.09982644797 | F5: -0.05617607641 | G5: 0.1559605009 | H5: 0.09988089161 | I5: -0.05607960925 | K5: 1 | M5: 54 | N5: 1
B6: RXR | C6: =VLOOKUP(B6,#REF!,4,FALSE) ->  | D6: =VLOOKUP(B6,'FY 23-24'!$E$16:$S$137,15,FALSE) -> 0.2102859031 | E6: =VLOOKUP(B6,'FY 24-25'!$E$16:$S$135,15,FALSE) -> 0.1757244297 | F6: -0.0345614734 | G6: 0.1506233568 | H6: 0.1904610871 | I6: 0.03983773031 | K6: 115 | M6: 113 | N6: 1
B7: RWG | C7: =VLOOKUP(B7,#REF!,4,FALSE) ->  | D7: =VLOOKUP(B7,'FY 23-24'!$E$16:$S$137,15,FALSE) -> 0.09778378555 | E7: =VLOOKUP(B7,'FY 24-25'!$E$16:$S$135,15,FALSE) -> 0.07052727827 | F7: -0.02725650728 | G7: 0.09772182254 | H7: 0.07050695926 | I7: -0.02721486328 | K7: 4 | M7: 40 | N7: 1
B8: RA2 | C8: =VLOOKUP(B8,#REF!,4,FALSE) ->  | D8: =VLOOKUP(B8,'FY 23-24'!$E$16:$S$137,15,FALSE) -> 0.06345288224 | E8: =VLOOKUP(B8,'FY 24-25'!$E$16:$S$135,15,FALSE) -> 0.03764543281 | F8: -0.02580744943 | G8: 0.06213472778 | H8: 0.03768132366 | I8: -0.02445340411 | K8: 6 | M8: 13 | N8: 1
B9: RJ7 | C9: =VLOOKUP(B9,#REF!,4,FALSE) ->  | D9: =VLOOKUP(B9,'FY 23-24'!$E$16:$S$137,15,FALSE) -> 0.1052542955 | E9: =VLOOKUP(B9,'FY 24-25'!$E$16:$S$135,15,FALSE) -> 0.08691560329 | F9: -0.01833869222 | G9: 0.1046640849 | H9: 0.06338934815 | I9: -0.04127473671 | K9: 2 | M9: 37 | N9: 1
B10: RTE | C10: =VLOOKUP(B10,#REF!,4,FALSE) ->  | D10: =VLOOKUP(B10,'FY 23-24'!$E$16:$S$137,15,FALSE) -> 0.139669147 | E10: =VLOOKUP(B10,'FY 24-25'!$E$16:$S$135,15,FALSE) -> 0.117153113 | F10: -0.02251603398 | G10: 0.1396824342 | H10: 0.1171295998 | I10: -0.02255283443 | K10: 7 | M10: 70 | N10: 1
B11: RM1 | C11: =VLOOKUP(B11,#REF!,4,FALSE) ->  | D11: =VLOOKUP(B11,'FY 23-24'!$E$16:$S$137,15,FALSE) -> 0.07023265767 | E11: =VLOOKUP(B11,'FY 24-25'!$E$16:$S$135,15,FALSE) -> 0.04774328738 | F11: -0.02248937029 | G11: 0.07024275068 | H11: 0.04775598234 | I11: -0.02248676835 | K11: 8 | M11: 21 | N11: 1
B12: RX1 | C12: =VLOOKUP(B12,#REF!,4,FALSE) ->  | D12: =VLOOKUP(B12,'FY 23-24'!$E$16:$S$137,15,FALSE) -> 0.1292964834 | E12: =VLOOKUP(B12,'FY 24-25'!$E$16:$S$135,15,FALSE) -> 0.1095270592 | F12: -0.01976942412 | G12: 0.129294649 | H12: 0.1093238567 | I12: -0.01997079225 | K12: 9 | M12: 63 | N12: 1
B13: RNS | C13: =VLOOKUP(B13,#REF!,4,FALSE) ->  | D13: =VLOOKUP(B13,'FY 23-24'!$E$16:$S$137,15,FALSE) -> 0.1645503818 | E13: =VLOOKUP(B13,'FY 24-25'!$E$16:$S$135,15,FALSE) -> 0.1454562181 | F13: -0.01909416372 | G13: 0.163774003 | H13: 0.1454249522 | I13: -0.01834905072 | K13: 10 | M13: 95 | N13: 1
B14: RN3 | C14: =VLOOKUP(B14,#REF!,4,FALSE) ->  | D14: =VLOOKUP(B14,'FY 23-24'!$E$16:$S$137,15,FALSE) -> 0.1518192033 | E14: =VLOOKUP(B14,'FY 24-25'!$E$16:$S$135,15,FALSE) -> 0.1340684585 | F14: -0.01775074478 | G14: 0.1517765292 | H14: 0.1341911765 | I14: -0.01758535277 | K14: 11 | M14: 88 | N14: 1
B15: RVR | C15: =VLOOKUP(B15,#REF!,4,FALSE) ->  | D15: =VLOOKUP(B15,'FY 23-24'!$E$16:$S$137,15,FALSE) -> 0.1398710661 | E15: =VLOOKUP(B15,'FY 24-25'!$E$16:$S$135,15,FALSE) -> 0.1224132657 | F15: -0.01745780038 | G15: 0.1399218775 | H15: 0.122430106 | I15: -0.01749177148 | K15: 12 | M15: 75 | N15: 1
B16: RK9 | C16: =VLOOKUP(B16,#REF!,4,FALSE) ->  | D16: =VLOOKUP(B16,'FY 23-24'!$E$16:$S$137,15,FALSE) -> 0.182176541 | E16: =VLOOKUP(B16,'FY 24-25'!$E$16:$S$135,15,FALSE) ->  | G16: 0.1821279081 | H16: 0.1649541794 | I16: -0.01717372871 | K16: 13 | M16: 106
B17: RTX | C17: =VLOOKUP(B17,#REF!,4,FALSE) ->  | D17: =VLOOKUP(B17,'FY 23-24'!$E$16:$S$137,15,FALSE) -> 0.08871799681 | E17: =VLOOKUP(B17,'FY 24-25'!$E$16:$S$135,15,FALSE) -> 0.07279704038 | F17: -0.01592095643 | G17: 0.08877774304 | H17: 0.07283825959 | I17: -0.01593948345 | K17: 14 | M17: 42 | N17: 1
B18: RH8 | C18: =VLOOKUP(B18,#REF!,4,FALSE) ->  | D18: =VLOOKUP(B18,'FY 23-24'!$E$16:$S$137,15,FALSE) -> 0.05224165689 | E18: =VLOOKUP(B18,'FY 24-25'!$E$16:$S$135,15,FALSE) -> 0.0395971038 | F18: -0.01264455309 | G18: 0.05222047889 | H18: 0.04071556593 | I18: -0.01150491296 | K18: 15 | M18: 14 | N18: 1
B19: RJZ | C19: =VLOOKUP(B19,#REF!,4,FALSE) ->  | D19: =VLOOKUP(B19,'FY 23-24'!$E$16:$S$137,15,FALSE) -> 0.1531069863 | E19: =VLOOKUP(B19,'FY 24-25'!$E$16:$S$135,15,FALSE) -> 0.1429608527 | F19: -0.01014613365 | G19: 0.1334516517 | H19: 0.1430569266 | I19: 0.009605274935 | K19: 70 | M19: 93 | N19: 1
B20: RWW | C20: =VLOOKUP(B20,#REF!,4,FALSE) ->  | D20: =VLOOKUP(B20,'FY 23-24'!$E$16:$S$137,15,FALSE) -> 0.2172229351 | E20: =VLOOKUP(B20,'FY 24-25'!$E$16:$S$135,15,FALSE) -> 0.2060623931 | F20: -0.01116054203 | G20: 0.2163499829 | H20: 0.2082104518 | I20: -0.008139531122 | K20: 21 | M20: 117 | N20: 1
B21: RAX | C21: =VLOOKUP(B21,#REF!,4,FALSE) ->  | D21: =VLOOKUP(B21,'FY 23-24'!$E$16:$S$137,15,FALSE) -> 0.1399281489 | E21: =VLOOKUP(B21,'FY 24-25'!$E$16:$S$135,15,FALSE) -> 0.1304867738 | F21: -0.009441375163 | G21: 0.1398097085 | H21: 0.1306213733 | I21: -0.009188335195 | K21: 17 | M21: 82 | N21: 1
B22: RGN | C22: =VLOOKUP(B22,#REF!,4,FALSE) ->  | D22: =VLOOKUP(B22,'FY 23-24'!$E$16:$S$137,15,FALSE) -> 0.1257826087 | E22: =VLOOKUP(B22,'FY 24-25'!$E$16:$S$135,15,FALSE) -> 0.1167129858 | F22: -0.009069622905 | G22: 0.1257957333 | H22: 0.1167423096 | I22: -0.009053423685 | K22: 18 | M22: 69 | N22: 1
B23: RKE | C23: =VLOOKUP(B23,#REF!,4,FALSE) ->  | D23: =VLOOKUP(B23,'FY 23-24'!$E$16:$S$137,15,FALSE) -> 0.104604155 | E23: =VLOOKUP(B23,'FY 24-25'!$E$16:$S$135,15,FALSE) -> 0.1987826328 | F23: 0.09417847788 | G23: 0.1046462661 | H23: 0.1006384047 | I23: -0.004007861437 | K23: 31 | M23: 55 | N23: 0
B24: R0D | C24: =VLOOKUP(B24,#REF!,4,FALSE) ->  | D24: =VLOOKUP(B24,'FY 23-24'!$E$16:$S$137,15,FALSE) -> 0.06648545313 | E24: =VLOOKUP(B24,'FY 24-25'!$E$16:$S$135,15,FALSE) ->  | G24: 0.06652129757 | H24: 0.05808303259 | I24: -0.008438264975 | K24: 20 | M24: 32
B25: REM | C25: =VLOOKUP(B25,#REF!,4,FALSE) ->  | D25: =VLOOKUP(B25,'FY 23-24'!$E$16:$S$137,15,FALSE) -> 0.1664429915 | E25: =VLOOKUP(B25,'FY 24-25'!$E$16:$S$135,15,FALSE) -> 0.1580702108 | F25: -0.008372780699 | G25: 0.1682274684 | H25: 0.1581636324 | I25: -0.01006383593 | K25: 16 | M25: 103 | N25: 1
B26: RFR | C26: =VLOOKUP(B26,#REF!,4,FALSE) ->  | D26: =VLOOKUP(B26,'FY 23-24'!$E$16:$S$137,15,FALSE) -> 0.05372301973 | E26: =VLOOKUP(B26,'FY 24-25'!$E$16:$S$135,15,FALSE) -> 0.04567034437 | F26: -0.008052675359 | G26: 0.0536968195 | H26: 0.04808293394 | I26: -0.005613885552 | K26: 26 | M26: 22 | N26: 1
B27: RVV | C27: =VLOOKUP(B27,#REF!,4,FALSE) ->  | D27: =VLOOKUP(B27,'FY 23-24'!$E$16:$S$137,15,FALSE) -> 0.2015026631 | E27: =VLOOKUP(B27,'FY 24-25'!$E$16:$S$135,15,FALSE) -> 0.1940346365 | F27: -0.007468026526 | G27: 0.2008761584 | H27: 0.1936830523 | I27: -0.007193106054 | K27: 22 | M27: 115 | N27: 1
B28: RA9 | C28: =VLOOKUP(B28,#REF!,4,FALSE) ->  | D28: =VLOOKUP(B28,'FY 23-24'!$E$16:$S$137,15,FALSE) -> 0.1205552534 | E28: =VLOOKUP(B28,'FY 24-25'!$E$16:$S$135,15,FALSE) -> 0.1141130599 | F28: -0.006442193472 | G28: 0.1229207028 | H28: 0.1141907569 | I28: -0.008729945904 | K28: 19 | M28: 68 | N28: 1
B29: RTH | C29: =VLOOKUP(B29,#REF!,4,FALSE) ->  | D29: =VLOOKUP(B29,'FY 23-24'!$E$16:$S$137,15,FALSE) -> 0.05210220047 | E29: =VLOOKUP(B29,'FY 24-25'!$E$16:$S$135,15,FALSE) -> 0.0462564636 | F29: -0.005845736865 | G29: 0.05213087356 | H29: 0.04622915711 | I29: -0.005901716456 | K29: 24 | M29: 19 | N29: 1
B30: RHM | C30: =VLOOKUP(B30,#REF!,4,FALSE) ->  | D30: =VLOOKUP(B30,'FY 23-24'!$E$16:$S$137,15,FALSE) -> 0.02541602255 | E30: =VLOOKUP(B30,'FY 24-25'!$E$16:$S$135,15,FALSE) -> 0.01967124425 | F30: -0.0057447783 | G30: 0.02539620681 | H30: 0.01963190184 | I30: -0.005764304966 | K30: 25 | M30: 6 | N30: 1
B31: RP5 | C31: =VLOOKUP(B31,#REF!,4,FALSE) ->  | D31: =VLOOKUP(B31,'FY 23-24'!$E$16:$S$137,15,FALSE) -> 0.05064489074 | E31: =VLOOKUP(B31,'FY 24-25'!$E$16:$S$135,15,FALSE) -> 0.04597032296 | F31: -0.004674567787 | G31: 0.05046526232 | H31: 0.04593211207 | I31: -0.004533150248 | K31: 28 | M31: 18 | N31: 1
B32: RNA | C32: =VLOOKUP(B32,#REF!,4,FALSE) ->  | D32: =VLOOKUP(B32,'FY 23-24'!$E$16:$S$137,15,FALSE) -> 0.1084946314 | E32: =VLOOKUP(B32,'FY 24-25'!$E$16:$S$135,15,FALSE) -> 0.1039593289 | F32: -0.004535302524 | G32: 0.1084077748 | H32: 0.1039346029 | I32: -0.004473171889 | K32: 29 | M32: 59 | N32: 1
B33: REF | C33: =VLOOKUP(B33,#REF!,4,FALSE) ->  | D33: =VLOOKUP(B33,'FY 23-24'!$E$16:$S$137,15,FALSE) -> 0.1730642271 | E33: =VLOOKUP(B33,'FY 24-25'!$E$16:$S$135,15,FALSE) -> 0.1688132656 | F33: -0.004250961518 | G33: 0.1731922636 | H33: 0.1687672312 | I33: -0.004425032436 | K33: 30 | M33: 107 | N33: 1
B34: RPA | C34: =VLOOKUP(B34,#REF!,4,FALSE) ->  | D34: =VLOOKUP(B34,'FY 23-24'!$E$16:$S$137,15,FALSE) -> 0.1330108 | E34: =VLOOKUP(B34,'FY 24-25'!$E$16:$S$135,15,FALSE) -> 0.1289212673 | F34: -0.004089532697 | G34: 0.1563409563 | H34: 0.1313497158 | I34: -0.02499124059 | K34: 5 | M34: 85 | N34: 1
B35: RR7 | C35: =VLOOKUP(B35,#REF!,4,FALSE) ->  | D35: =VLOOKUP(B35,'FY 23-24'!$E$16:$S$137,15,FALSE) -> 0.07917818264 | E35: =VLOOKUP(B35,'FY 24-25'!$E$16:$S$135,15,FALSE) -> 0.07556578443 | F35: =E35-D35 -> -0.003612398212 | G35: 0.07790726102 | H35: 0.07563264146 | I35: =H35-G35 -> -0.002274619566 | J35: =RANK(F35,$F$3:$F$123,1) ->  | K35: =RANK(I35,$I$3:$I$123,1) -> 36 | L35: =RANK(E35,$E$3:$E$123,2) ->  | M35: =RANK(H35,$H$3:$H$123,2) -> 44 | N35: =IF(E35<D35,1,0) -> 1
B36: RD8 | C36: =VLOOKUP(B36,#REF!,4,FALSE) ->  | D36: =VLOOKUP(B36,'FY 23-24'!$E$16:$S$137,15,FALSE) -> 0.06434393353 | E36: =VLOOKUP(B36,'FY 24-25'!$E$16:$S$135,15,FALSE) -> 0.0610302777 | F36: -0.003313655823 | G36: 0.0643755571 | H36: 0.06101904174 | I36: -0.003356515356 | K36: 33 | M36: 35 | N36: 1
B37: RWE | C37: =VLOOKUP(B37,#REF!,4,FALSE) ->  | D37: =VLOOKUP(B37,'FY 23-24'!$E$16:$S$137,15,FALSE) -> 0.1174420389 | E37: =VLOOKUP(B37,'FY 24-25'!$E$16:$S$135,15,FALSE) -> 0.1142231019 | F37: -0.003218937005 | G37: 0.1149967286 | H37: 0.1141554145 | I37: -0.0008413140924 | K37: 38 | M37: 67 | N37: 1
B38: RRK | C38: =VLOOKUP(B38,#REF!,4,FALSE) ->  | D38: =VLOOKUP(B38,'FY 23-24'!$E$16:$S$137,15,FALSE) -> 0.1537185986 | E38: =VLOOKUP(B38,'FY 24-25'!$E$16:$S$135,15,FALSE) -> 0.1506149569 | F38: -0.003103641755 | G38: 0.1536830272 | H38: 0.1506208875 | I38: -0.003062139612 | K38: 34 | M38: 100 | N38: 1
B39: RQ3 | C39: =VLOOKUP(B39,#REF!,4,FALSE) ->  | D39: =VLOOKUP(B39,'FY 23-24'!$E$16:$S$137,15,FALSE) -> 0.007679521277 | E39: =VLOOKUP(B39,'FY 24-25'!$E$16:$S$135,15,FALSE) -> 0.004743740219 | F39: -0.002935781058 | G39: 0.009533898305 | H39: 0.005817643326 | I39: -0.00371625498 | K39: 32 | M39: 3 | N39: 1
B40: RWH | C40: =VLOOKUP(B40,#REF!,4,FALSE) ->  | D40: =VLOOKUP(B40,'FY 23-24'!$E$16:$S$137,15,FALSE) -> 0.1297394984 | E40: =VLOOKUP(B40,'FY 24-25'!$E$16:$S$135,15,FALSE) -> 0.1279078389 | F40: -0.001831659506 | G40: 0.125708925 | H40: 0.1278557857 | I40: 0.002146860725 | K40: 46 | M40: 81 | N40: 1
B41: R0A | C41: =VLOOKUP(B41,#REF!,4,FALSE) ->  | D41: =VLOOKUP(B41,'FY 23-24'!$E$16:$S$137,15,FALSE) -> 0.07665020265 | E41: =VLOOKUP(B41,'FY 24-25'!$E$16:$S$135,15,FALSE) -> 0.07623206389 | F41: -0.0004181387508 | G41: 0.07675857546 | H41: 0.07638879754 | I41: -0.0003697779237 | K41: 39 | M41: 46 | N41: 1
B42: RCU | C42: =VLOOKUP(B42,#REF!,4,FALSE) ->  | D42: =VLOOKUP(B42,'FY 23-24'!$E$16:$S$137,15,FALSE) -> 0.0002604632991 | E42: =VLOOKUP(B42,'FY 24-25'!$E$16:$S$135,15,FALSE) -> 9.636851319e-05 | F42: -0.0001640947859 | G42: 0 | H42: 0 | I42: 0 | K42: 40 | M42: 1 | N42: 1
B43: RBS | C43: =VLOOKUP(B43,#REF!,4,FALSE) ->  | D43: =VLOOKUP(B43,'FY 23-24'!$E$16:$S$137,15,FALSE) -> 0.001703772639 | E43: =VLOOKUP(B43,'FY 24-25'!$E$16:$S$135,15,FALSE) -> 0.001737443352 | F43: 3.367071269e-05 | G43: 0.002452182442 | H43: 0.002509410289 | I43: 5.722784621e-05 | K43: 41 | M43: 2 | N43: 0
B44: RAL | C44: =VLOOKUP(B44,#REF!,4,FALSE) ->  | D44: =VLOOKUP(B44,'FY 23-24'!$E$16:$S$137,15,FALSE) -> 0.138316969 | E44: =VLOOKUP(B44,'FY 24-25'!$E$16:$S$135,15,FALSE) -> 0.1388132948 | F44: 0.0004963257416 | G44: 0.14111791 | H44: 0.1343889732 | I44: -0.006728936809 | K44: 23 | M44: 89 | N44: 0
B45: RJ1 | C45: =VLOOKUP(B45,#REF!,4,FALSE) ->  | D45: =VLOOKUP(B45,'FY 23-24'!$E$16:$S$137,15,FALSE) -> 0.01428976266 | E45: =VLOOKUP(B45,'FY 24-25'!$E$16:$S$135,15,FALSE) -> 0.01522960307 | F45: 0.0009398404084 | G45: 0.01136741341 | H45: 0.01521001521 | I45: 0.003842601795 | K45: 52 | M45: 5 | N45: 0
B46: RVW | C46: =VLOOKUP(B46,#REF!,4,FALSE) ->  | D46: =VLOOKUP(B46,'FY 23-24'!$E$16:$S$137,15,FALSE) -> 0.02018003394 | E46: =VLOOKUP(B46,'FY 24-25'!$E$16:$S$135,15,FALSE) -> 0.02119987458 | F46: 0.001019840637 | G46: 0.02001475742 | H46: 0.02482673011 | I46: 0.004811972688 | K46: 56 | M46: 8 | N46: 0
B47: RCX | C47: =VLOOKUP(B47,#REF!,4,FALSE) ->  | D47: =VLOOKUP(B47,'FY 23-24'!$E$16:$S$137,15,FALSE) -> 0.1257024858 | E47: =VLOOKUP(B47,'FY 24-25'!$E$16:$S$135,15,FALSE) -> 0.127218488 | F47: 0.00151600221 | G47: 0.1257923283 | H47: 0.1272498427 | I47: 0.001457514367 | K47: 43 | M47: 79 | N47: 0
B48: RFF | C48: =VLOOKUP(B48,#REF!,4,FALSE) ->  | D48: =VLOOKUP(B48,'FY 23-24'!$E$16:$S$137,15,FALSE) -> 0.0186030796 | E48: =VLOOKUP(B48,'FY 24-25'!$E$16:$S$135,15,FALSE) -> 0.02023651367 | F48: 0.001633434072 | G48: 0.01860689323 | H48: 0.02020674494 | I48: 0.001599851709 | K48: 44 | M48: 7 | N48: 0
B49: R1K | C49: =VLOOKUP(B49,#REF!,4,FALSE) ->  | D49: =VLOOKUP(B49,'FY 23-24'!$E$16:$S$137,15,FALSE) -> 0.1475453662 | E49: =VLOOKUP(B49,'FY 24-25'!$E$16:$S$135,15,FALSE) -> 0.1492372154 | F49: 0.00169184921 | G49: 0.1504612275 | H49: 0.1482338424 | I49: -0.002227385193 | K49: 37 | M49: 97 | N49: 0
B50: RJN | C50: =VLOOKUP(B50,#REF!,4,FALSE) ->  | D50: =VLOOKUP(B50,'FY 23-24'!$E$16:$S$137,15,FALSE) -> 0.1378468501 | E50: =VLOOKUP(B50,'FY 24-25'!$E$16:$S$135,15,FALSE) -> 0.1396708532 | F50: 0.001824003118 | G50: 0.137848843 | H50: 0.1395716119 | I50: 0.001722768901 | K50: 45 | M50: 92 | N50: 0
B51: RWY | C51: =VLOOKUP(B51,#REF!,4,FALSE) ->  | D51: =VLOOKUP(B51,'FY 23-24'!$E$16:$S$137,15,FALSE) -> 0.03965567981 | E51: =VLOOKUP(B51,'FY 24-25'!$E$16:$S$135,15,FALSE) -> 0.04162190453 | F51: 0.001966224714 | G51: 0.03961292513 | H51: 0.04182207761 | I51: 0.002209152481 | K51: 47 | M51: 16 | N51: 0
B52: RF4 | C52: =VLOOKUP(B52,#REF!,4,FALSE) ->  | D52: =VLOOKUP(B52,'FY 23-24'!$E$16:$S$137,15,FALSE) -> 0.171498021 | E52: =VLOOKUP(B52,'FY 24-25'!$E$16:$S$135,15,FALSE) -> 0.173776745 | F52: 0.002278723982 | G52: 0.1715193378 | H52: 0.1737593511 | I52: 0.002240013287 | K52: 48 | M52: 109 | N52: 0
B53: RXN | C53: =VLOOKUP(B53,#REF!,4,FALSE) ->  | D53: =VLOOKUP(B53,'FY 23-24'!$E$16:$S$137,15,FALSE) -> 0.1281649934 | E53: =VLOOKUP(B53,'FY 24-25'!$E$16:$S$135,15,FALSE) -> 0.131050751 | F53: 0.002885757652 | G53: 0.1282024758 | H53: 0.1310804247 | I53: 0.002877948899 | K53: 49 | M53: 84 | N53: 0
B54: RR8 | C54: =VLOOKUP(B54,#REF!,4,FALSE) ->  | D54: =VLOOKUP(B54,'FY 23-24'!$E$16:$S$137,15,FALSE) -> 0.07663971406 | E54: =VLOOKUP(B54,'FY 24-25'!$E$16:$S$135,15,FALSE) -> 0.08017851779 | F54: 0.003538803724 | G54: 0.07667374784 | H54: 0.08018452956 | I54: 0.00351078172 | K54: 50 | M54: 47 | N54: 0
B55: RTD | C55: =VLOOKUP(B55,#REF!,4,FALSE) ->  | D55: =VLOOKUP(B55,'FY 23-24'!$E$16:$S$137,15,FALSE) -> 0.02454951888 | E55: =VLOOKUP(B55,'FY 24-25'!$E$16:$S$135,15,FALSE) -> 0.02827125444 | F55: 0.00372173556 | G55: 0.02453900709 | H55: 0.02827595977 | I55: 0.003736952675 | K55: 51 | M55: 9 | N55: 0
B56: RTF | C56: =VLOOKUP(B56,#REF!,4,FALSE) ->  | D56: =VLOOKUP(B56,'FY 23-24'!$E$16:$S$137,15,FALSE) -> 0.005869195825 | E56: =VLOOKUP(B56,'FY 24-25'!$E$16:$S$135,15,FALSE) -> 0.01099127391 | F56: 0.005122078082 | G56: 0.006812200031 | H56: 0.01102578403 | I56: 0.004213584001 | K56: 54 | M56: 4 | N56: 0
B57: RQX | C57: =VLOOKUP(B57,#REF!,4,FALSE) ->  | D57: =VLOOKUP(B57,'FY 23-24'!$E$16:$S$137,15,FALSE) -> 0.04571913558 | E57: =VLOOKUP(B57,'FY 24-25'!$E$16:$S$135,15,FALSE) -> 0.05086542127 | F57: 0.005146285693 | G57: 0.04567836983 | H57: 0.05082548519 | I57: 0.005147115356 | K57: 57 | M57: 23 | N57: 0
B58: RLT | C58: =VLOOKUP(B58,#REF!,4,FALSE) ->  | D58: =VLOOKUP(B58,'FY 23-24'!$E$16:$S$137,15,FALSE) -> 0.1136357785 | E58: =VLOOKUP(B58,'FY 24-25'!$E$16:$S$135,15,FALSE) -> 0.1190672843 | F58: 0.005431505857 | G58: 0.1136641565 | H58: 0.1139273754 | I58: 0.0002632188726 | K58: 42 | M58: 66 | N58: 0
B59: RQM | C59: =VLOOKUP(B59,#REF!,4,FALSE) ->  | D59: =VLOOKUP(B59,'FY 23-24'!$E$16:$S$137,15,FALSE) -> 0.04565310493 | E59: =VLOOKUP(B59,'FY 24-25'!$E$16:$S$135,15,FALSE) -> 0.05129758733 | F59: 0.005644482402 | G59: 0.04526154891 | H59: 0.05263350402 | I59: 0.00737195511 | K59: 62 | M59: 26 | N59: 0
B60: RAS | C60: =VLOOKUP(B60,#REF!,4,FALSE) ->  | D60: =VLOOKUP(B60,'FY 23-24'!$E$16:$S$137,15,FALSE) -> 0.1427597656 | E60: =VLOOKUP(B60,'FY 24-25'!$E$16:$S$135,15,FALSE) -> 0.148631267 | F60: 0.005871501348 | G60: 0.1353760446 | H60: 0.1476338515 | I60: 0.0122578069 | K60: 80 | M60: 96 | N60: 0
B61: RWD | C61: =VLOOKUP(B61,#REF!,4,FALSE) ->  | D61: =VLOOKUP(B61,'FY 23-24'!$E$16:$S$137,15,FALSE) -> 0.1870108742 | E61: =VLOOKUP(B61,'FY 24-25'!$E$16:$S$135,15,FALSE) -> 0.1930173498 | F61: 0.006006475539 | G61: 0.1883964804 | H61: 0.193022109 | I61: 0.00462562861 | K61: 55 | M61: 114 | N61: 0
B62: RGT | C62: =VLOOKUP(B62,#REF!,4,FALSE) ->  | D62: =VLOOKUP(B62,'FY 23-24'!$E$16:$S$137,15,FALSE) -> 0.1154960584 | E62: =VLOOKUP(B62,'FY 24-25'!$E$16:$S$135,15,FALSE) -> 0.1220879095 | F62: 0.006591851118 | G62: 0.1154951236 | H62: 0.1220907605 | I62: 0.00659563686 | K62: 58 | M62: 74 | N62: 0
B63: RRF | C63: =VLOOKUP(B63,#REF!,4,FALSE) ->  | D63: =VLOOKUP(B63,'FY 23-24'!$E$16:$S$137,15,FALSE) -> 0.194758298 | E63: =VLOOKUP(B63,'FY 24-25'!$E$16:$S$135,15,FALSE) -> 0.2015734389 | F63: 0.006815140817 | G63: 0.1947535771 | H63: 0.2016157359 | I63: 0.006862158756 | K63: 59 | M63: 116 | N63: 0
B64: RJ6 | C64: =VLOOKUP(B64,#REF!,4,FALSE) ->  | D64: =VLOOKUP(B64,'FY 23-24'!$E$16:$S$137,15,FALSE) -> 0.09785000066 | E64: =VLOOKUP(B64,'FY 24-25'!$E$16:$S$135,15,FALSE) -> 0.105634892 | F64: 0.007784891335 | G64: 0.09778670707 | H64: 0.1056192808 | I64: 0.007832573767 | K64: 63 | M64: 62 | N64: 0
B65: RTK | C65: =VLOOKUP(B65,#REF!,4,FALSE) ->  | D65: =VLOOKUP(B65,'FY 23-24'!$E$16:$S$137,15,FALSE) -> 0.0937773257 | E65: =VLOOKUP(B65,'FY 24-25'!$E$16:$S$135,15,FALSE) -> 0.1018065424 | F65: 0.008029216736 | G65: 0.09370096391 | H65: 0.1018192488 | I65: 0.008118284917 | K65: 65 | M65: 57 | N65: 0
B66: RJ2 | C66: =VLOOKUP(B66,#REF!,4,FALSE) ->  | D66: =VLOOKUP(B66,'FY 23-24'!$E$16:$S$137,15,FALSE) -> 0.1260054691 | E66: =VLOOKUP(B66,'FY 24-25'!$E$16:$S$135,15,FALSE) -> 0.1345912299 | F66: 0.008585760856 | G66: 0.1257481464 | H66: 0.132747507 | I66: 0.006999360641 | K66: 60 | M66: 87 | N66: 0
B67: RBK | C67: =VLOOKUP(B67,#REF!,4,FALSE) ->  | D67: =VLOOKUP(B67,'FY 23-24'!$E$16:$S$137,15,FALSE) -> 0.04728994878 | E67: =VLOOKUP(B67,'FY 24-25'!$E$16:$S$135,15,FALSE) -> 0.05592003353 | F67: =E67-D67 -> 0.008630084747 | G67: 0.04720945178 | H67: 0.05595042829 | I67: =H67-G67 -> 0.008740976508 | J67: =RANK(F67,$F$3:$F$123,1) ->  | K67: =RANK(I67,$I$3:$I$123,1) -> 67 | L67: =RANK(E67,$E$3:$E$123,2) ->  | M67: =RANK(H67,$H$3:$H$123,2) -> 29 | N67: =IF(E67<D67,1,0) -> 0
B68: RQW | C68: =VLOOKUP(B68,#REF!,4,FALSE) ->  | D68: =VLOOKUP(B68,'FY 23-24'!$E$16:$S$137,15,FALSE) -> 0.1087454077 | E68: =VLOOKUP(B68,'FY 24-25'!$E$16:$S$135,15,FALSE) -> 0.117884646 | F68: 0.009139238292 | G68: 0.1086993243 | H68: 0.1186205738 | I68: 0.009921249456 | K68: 71 | M68: 72 | N68: 0
B69: RMC | C69: =VLOOKUP(B69,#REF!,4,FALSE) ->  | D69: =VLOOKUP(B69,'FY 23-24'!$E$16:$S$137,15,FALSE) -> 0.1383285571 | E69: =VLOOKUP(B69,'FY 24-25'!$E$16:$S$135,15,FALSE) -> 0.1478496868 | F69: 0.009521129774 | G69: 0.1306281503 | H69: 0.1384877219 | I69: 0.007859571576 | K69: 64 | M69: 91 | N69: 0
B70: R0B | C70: =VLOOKUP(B70,#REF!,4,FALSE) ->  | D70: =VLOOKUP(B70,'FY 23-24'!$E$16:$S$137,15,FALSE) -> 0.0266611342 | E70: =VLOOKUP(B70,'FY 24-25'!$E$16:$S$135,15,FALSE) -> 0.03653708953 | F70: 0.009875955336 | G70: 0.02745376475 | H70: 0.03654799886 | I70: 0.009094234113 | K70: 69 | M70: 12 | N70: 0
B71: RRV | C71: =VLOOKUP(B71,#REF!,4,FALSE) ->  | D71: =VLOOKUP(B71,'FY 23-24'!$E$16:$S$137,15,FALSE) -> 0.02479149332 | E71: =VLOOKUP(B71,'FY 24-25'!$E$16:$S$135,15,FALSE) -> 0.03491366253 | F71: 0.01012216921 | G71: 0.02476577344 | H71: 0.03490280232 | I71: 0.01013702888 | K71: 73 | M71: 11 | N71: 0
B72: RN5 | C72: =VLOOKUP(B72,#REF!,4,FALSE) ->  | D72: =VLOOKUP(B72,'FY 23-24'!$E$16:$S$137,15,FALSE) -> 0.05122499064 | E72: =VLOOKUP(B72,'FY 24-25'!$E$16:$S$135,15,FALSE) -> 0.06139763655 | F72: 0.01017264591 | G72: 0.0512687188 | H72: 0.0614001058 | I72: 0.010131387 | K72: 72 | M72: 36 | N72: 0
B73: RLQ | C73: =VLOOKUP(B73,#REF!,4,FALSE) ->  | D73: =VLOOKUP(B73,'FY 23-24'!$E$16:$S$137,15,FALSE) -> 0.1385464889 | E73: =VLOOKUP(B73,'FY 24-25'!$E$16:$S$135,15,FALSE) -> 0.1489023096 | F73: 0.01035582071 | G73: 0.1386041972 | H73: 0.1489593253 | I73: 0.01035512809 | K73: 74 | M73: 99 | N73: 0
B74: RA7 | C74: =VLOOKUP(B74,#REF!,4,FALSE) ->  | D74: =VLOOKUP(B74,'FY 23-24'!$E$16:$S$137,15,FALSE) -> 0.03705442966 | E74: =VLOOKUP(B74,'FY 24-25'!$E$16:$S$135,15,FALSE) -> 0.04750504869 | F74: 0.01045061903 | G74: 0.03707870665 | H74: 0.04748869915 | I74: 0.0104099925 | K74: 75 | M74: 20 | N74: 0
B75: RHQ | C75: =VLOOKUP(B75,#REF!,4,FALSE) ->  | D75: =VLOOKUP(B75,'FY 23-24'!$E$16:$S$137,15,FALSE) -> 0.04988742646 | E75: =VLOOKUP(B75,'FY 24-25'!$E$16:$S$135,15,FALSE) -> 0.0605630452 | F75: 0.01067561874 | G75: 0.04991324698 | H75: 0.06064091378 | I75: 0.01072766679 | K75: 76 | M75: 34 | N75: 0
B76: RAE | C76: =VLOOKUP(B76,#REF!,4,FALSE) ->  | D76: =VLOOKUP(B76,'FY 23-24'!$E$16:$S$137,15,FALSE) -> 0.04914634736 | E76: =VLOOKUP(B76,'FY 24-25'!$E$16:$S$135,15,FALSE) -> 0.06101400184 | F76: 0.01186765448 | G76: 0.05384934634 | H76: 0.05118611686 | I76: -0.002663229477 | K76: 35 | M76: 25 | N76: 0
B77: RC9 | C77: =VLOOKUP(B77,#REF!,4,FALSE) ->  | D77: =VLOOKUP(B77,'FY 23-24'!$E$16:$S$137,15,FALSE) -> 0.04651842095 | E77: =VLOOKUP(B77,'FY 24-25'!$E$16:$S$135,15,FALSE) -> 0.05803814994 | F77: 0.01151972899 | G77: 0.04655176992 | H77: 0.05783673575 | I77: 0.01128496582 | K77: 77 | M77: 31 | N77: 0
B78: RBN | C78: =VLOOKUP(B78,#REF!,4,FALSE) ->  | D78: =VLOOKUP(B78,'FY 23-24'!$E$16:$S$137,15,FALSE) -> 0.1664046625 | E78: =VLOOKUP(B78,'FY 24-25'!$E$16:$S$135,15,FALSE) -> 0.178003971 | F78: 0.01159930849 | G78: 0.1667855123 | H78: 0.1799427797 | I78: 0.0131572674 | K78: 84 | M78: 111 | N78: 0
B79: RH5 | C79: =VLOOKUP(B79,#REF!,4,FALSE) ->  | D79: =VLOOKUP(B79,'FY 23-24'!$E$16:$S$137,15,FALSE) -> 0.02984311447 | E79: =VLOOKUP(B79,'FY 24-25'!$E$16:$S$135,15,FALSE) -> 0.04164371196 | F79: 0.01180059749 | G79: 0.02979824794 | H79: 0.04136148212 | I79: 0.01156323418 | K79: 78 | M79: 15 | N79: 0
B80: RHW | C80: =VLOOKUP(B80,#REF!,4,FALSE) ->  | D80: =VLOOKUP(B80,'FY 23-24'!$E$16:$S$137,15,FALSE) -> 0.03082881136 | E80: =VLOOKUP(B80,'FY 24-25'!$E$16:$S$135,15,FALSE) -> 0.04275664423 | F80: 0.01192783287 | G80: 0.03885149527 | H80: 0.04275098189 | I80: 0.003899486617 | K80: 53 | M80: 17 | N80: 0
B81: RGR | C81: =VLOOKUP(B81,#REF!,4,FALSE) ->  | D81: =VLOOKUP(B81,'FY 23-24'!$E$16:$S$137,15,FALSE) -> 0.09182100595 | E81: =VLOOKUP(B81,'FY 24-25'!$E$16:$S$135,15,FALSE) -> 0.1038748807 | F81: 0.01205387477 | G81: 0.09183068532 | H81: 0.1038718877 | I81: 0.01204120236 | K81: 79 | M81: 58 | N81: 0
B82: RYJ | C82: =VLOOKUP(B82,#REF!,4,FALSE) ->  | D82: =VLOOKUP(B82,'FY 23-24'!$E$16:$S$137,15,FALSE) -> 0.04705138211 | E82: =VLOOKUP(B82,'FY 24-25'!$E$16:$S$135,15,FALSE) -> 0.05995587248 | F82: 0.01290449037 | G82: 0.04784943378 | H82: 0.06039606599 | I82: 0.01254663221 | K82: 81 | M82: 33 | N82: 0
B83: RN7 | C83: =VLOOKUP(B83,#REF!,4,FALSE) ->  | D83: =VLOOKUP(B83,'FY 23-24'!$E$16:$S$137,15,FALSE) -> 0.06918733631 | E83: =VLOOKUP(B83,'FY 24-25'!$E$16:$S$135,15,FALSE) -> 0.08211104414 | F83: 0.01292370783 | G83: 0.06918938972 | H83: 0.08185848951 | I83: 0.01266909979 | K83: 83 | M83: 48 | N83: 0
B84: RNN | C84: =VLOOKUP(B84,#REF!,4,FALSE) ->  | D84: =VLOOKUP(B84,'FY 23-24'!$E$16:$S$137,15,FALSE) -> 0.09953928113 | E84: =VLOOKUP(B84,'FY 24-25'!$E$16:$S$135,15,FALSE) -> 0.1130743667 | F84: 0.01353508557 | G84: 0.1025964205 | H84: 0.1116868891 | I84: 0.009090468645 | K84: 68 | M84: 64 | N84: 0
B85: RAJ | C85: =VLOOKUP(B85,#REF!,4,FALSE) ->  | D85: =VLOOKUP(B85,'FY 23-24'!$E$16:$S$137,15,FALSE) -> 0.07954797644 | E85: =VLOOKUP(B85,'FY 24-25'!$E$16:$S$135,15,FALSE) -> 0.09327200081 | F85: 0.01372402438 | G85: 0.07955261897 | H85: 0.09217549252 | I85: 0.01262287356 | K85: 82 | M85: 51 | N85: 0
B86: RXL | C86: =VLOOKUP(B86,#REF!,4,FALSE) ->  | D86: =VLOOKUP(B86,'FY 23-24'!$E$16:$S$137,15,FALSE) -> 0.2494641281 | E86: =VLOOKUP(B86,'FY 24-25'!$E$16:$S$135,15,FALSE) -> 0.2634037267 | F86: 0.0139395986 | G86: 0.2494484019 | H86: 0.2632919255 | I86: 0.01384352352 | K86: 85 | M86: 121 | N86: 0
B87: RNZ | C87: =VLOOKUP(B87,#REF!,4,FALSE) ->  | D87: =VLOOKUP(B87,'FY 23-24'!$E$16:$S$137,15,FALSE) -> 0.05253136201 | E87: =VLOOKUP(B87,'FY 24-25'!$E$16:$S$135,15,FALSE) -> 0.06724408615 | F87: 0.01471272415 | G87: 0.05255297302 | H87: 0.06721354856 | I87: 0.01466057553 | K87: 86 | M87: 38 | N87: 0
B88: RWA | C88: =VLOOKUP(B88,#REF!,4,FALSE) ->  | D88: =VLOOKUP(B88,'FY 23-24'!$E$16:$S$137,15,FALSE) -> 0.1152614564 | E88: =VLOOKUP(B88,'FY 24-25'!$E$16:$S$135,15,FALSE) -> 0.1311082759 | F88: 0.01584681943 | G88: 0.1152770863 | H88: 0.1310320535 | I88: 0.01575496725 | K88: 87 | M88: 83 | N88: 0
B89: RWF | C89: =VLOOKUP(B89,#REF!,4,FALSE) ->  | D89: =VLOOKUP(B89,'FY 23-24'!$E$16:$S$137,15,FALSE) -> 0.05204137069 | E89: =VLOOKUP(B89,'FY 24-25'!$E$16:$S$135,15,FALSE) -> 0.06790547142 | F89: 0.01586410073 | G89: 0.05062639956 | H89: 0.06791082164 | I89: 0.01728442208 | K89: 90 | M89: 39 | N89: 0
B90: RGP | C90: =VLOOKUP(B90,#REF!,4,FALSE) ->  | D90: =VLOOKUP(B90,'FY 23-24'!$E$16:$S$137,15,FALSE) -> 0.07480227385 | E90: =VLOOKUP(B90,'FY 24-25'!$E$16:$S$135,15,FALSE) -> 0.0922548393 | F90: 0.01745256545 | G90: 0.07646004098 | H90: 0.09222165154 | I90: 0.01576161056 | K90: 88 | M90: 52 | N90: 0
B91: RWP | C91: =VLOOKUP(B91,#REF!,4,FALSE) ->  | D91: =VLOOKUP(B91,'FY 23-24'!$E$16:$S$137,15,FALSE) -> 0.1564608982 | E91: =VLOOKUP(B91,'FY 24-25'!$E$16:$S$135,15,FALSE) -> 0.1740512162 | F91: 0.01759031803 | G91: 0.1564520993 | H91: 0.1741051561 | I91: 0.01765305676 | K91: 91 | M91: 110 | N91: 0
B92: RCB | C92: =VLOOKUP(B92,#REF!,4,FALSE) ->  | D92: =VLOOKUP(B92,'FY 23-24'!$E$16:$S$137,15,FALSE) -> 0.1683786709 | E92: =VLOOKUP(B92,'FY 24-25'!$E$16:$S$135,15,FALSE) -> 0.1863633 | F92: 0.01798462909 | G92: 0.1683669496 | H92: 0.1881073577 | I92: 0.01974040809 | K92: 94 | M92: 112 | N92: 0
B93: RJE | C93: =VLOOKUP(B93,#REF!,4,FALSE) ->  | D93: =VLOOKUP(B93,'FY 23-24'!$E$16:$S$137,15,FALSE) -> 0.1345566677 | E93: =VLOOKUP(B93,'FY 24-25'!$E$16:$S$135,15,FALSE) -> 0.152677309 | F93: 0.01812064128 | G93: 0.1347025711 | H93: 0.1538256702 | I93: 0.01912309903 | K93: 92 | M93: 102 | N93: 0
B94: RM3 | C94: =VLOOKUP(B94,#REF!,4,FALSE) ->  | D94: =VLOOKUP(B94,'FY 23-24'!$E$16:$S$137,15,FALSE) -> 0.1072965689 | E94: =VLOOKUP(B94,'FY 24-25'!$E$16:$S$135,15,FALSE) -> 0.1254622615 | F94: 0.01816569256 | G94: 0.1073449173 | H94: 0.1266486811 | I94: 0.01930376374 | K94: 93 | M94: 78 | N94: 0
B95: RD1 | C95: =VLOOKUP(B95,#REF!,4,FALSE) ->  | D95: =VLOOKUP(B95,'FY 23-24'!$E$16:$S$137,15,FALSE) -> 0.0498848499 | E95: =VLOOKUP(B95,'FY 24-25'!$E$16:$S$135,15,FALSE) -> 0.07106403941 | F95: 0.02117918951 | G95: 0.04984693878 | H95: 0.07114351875 | I95: 0.02129657997 | K95: 97 | M95: 41 | N95: 0
B96: RYR | C96: =VLOOKUP(B96,#REF!,4,FALSE) ->  | D96: =VLOOKUP(B96,'FY 23-24'!$E$16:$S$137,15,FALSE) -> 0.1183067261 | E96: =VLOOKUP(B96,'FY 24-25'!$E$16:$S$135,15,FALSE) -> 0.1396967891 | F96: 0.02139006297 | G96: 0.1182914846 | H96: 0.1430648506 | I96: 0.02477336605 | K96: 104 | M96: 94 | N96: 0
B97: RL4 | C97: =VLOOKUP(B97,#REF!,4,FALSE) ->  | D97: =VLOOKUP(B97,'FY 23-24'!$E$16:$S$137,15,FALSE) -> 0.08291155257 | E97: =VLOOKUP(B97,'FY 24-25'!$E$16:$S$135,15,FALSE) -> 0.1043792947 | F97: 0.02146774209 | G97: 0.08294843404 | H97: 0.1043923079 | I97: 0.0214438739 | K97: 99 | M97: 60 | N97: 0
B98: RCF | C98: =VLOOKUP(B98,#REF!,4,FALSE) ->  | D98: =VLOOKUP(B98,'FY 23-24'!$E$16:$S$137,15,FALSE) -> 0.05367022982 | E98: =VLOOKUP(B98,'FY 24-25'!$E$16:$S$135,15,FALSE) -> 0.07565515325 | F98: 0.02198492344 | G98: 0.05436676657 | H98: 0.07572147207 | I98: 0.0213547055 | K98: 98 | M98: 45 | N98: 0
B99: RWJ | C99: =VLOOKUP(B99,#REF!,4,FALSE) ->  | D99: =VLOOKUP(B99,'FY 23-24'!$E$16:$S$137,15,FALSE) -> 0.1001793175 | E99: =VLOOKUP(B99,'FY 24-25'!$E$16:$S$135,15,FALSE) -> 0.12232312 | F99: =E99-D99 -> 0.02214380247 | G99: 0.1273708674 | H99: 0.1225871995 | I99: =H99-G99 -> -0.004783667923 | J99: =RANK(F99,$F$3:$F$123,1) ->  | K99: =RANK(I99,$I$3:$I$123,1) -> 27 | L99: =RANK(E99,$E$3:$E$123,2) ->  | M99: =RANK(H99,$H$3:$H$123,2) -> 76 | N99: =IF(E99<D99,1,0) -> 0
B100: RTR | C100: =VLOOKUP(B100,#REF!,4,FALSE) ->  | D100: =VLOOKUP(B100,'FY 23-24'!$E$16:$S$137,15,FALSE) -> 0.02859334351 | E100: =VLOOKUP(B100,'FY 24-25'!$E$16:$S$135,15,FALSE) -> 0.05088795537 | F100: 0.02229461186 | G100: 0.02855339959 | H100: 0.0510056673 | I100: 0.02245226771 | K100: 101 | M100: 24 | N100: 0
B101: RJC | C101: =VLOOKUP(B101,#REF!,4,FALSE) ->  | D101: =VLOOKUP(B101,'FY 23-24'!$E$16:$S$137,15,FALSE) -> 0.01220700452 | E101: =VLOOKUP(B101,'FY 24-25'!$E$16:$S$135,15,FALSE) -> 0.03482839432 | F101: 0.0226213898 | G101: 0.01226120751 | H101: 0.03469263542 | I101: 0.02243142791 | K101: 100 | M101: 10 | N101: 0
B102: RBD | C102: =VLOOKUP(B102,#REF!,4,FALSE) ->  | D102: =VLOOKUP(B102,'FY 23-24'!$E$16:$S$137,15,FALSE) -> 0.06919545447 | E102: =VLOOKUP(B102,'FY 24-25'!$E$16:$S$135,15,FALSE) -> 0.0920205808 | F102: 0.02282512633 | G102: 0.06930260976 | H102: 0.09193196686 | I102: 0.0226293571 | K102: 102 | M102: 50 | N102: 0
B103: RHU | C103: =VLOOKUP(B103,#REF!,4,FALSE) ->  | D103: =VLOOKUP(B103,'FY 23-24'!$E$16:$S$137,15,FALSE) -> 0.1238452288 | E103: =VLOOKUP(B103,'FY 24-25'!$E$16:$S$135,15,FALSE) -> 0.1483348123 | F103: 0.02448958344 | G103: 0.1256771786 | H103: 0.1529659956 | I103: 0.02728881701 | K103: 107 | M103: 101 | N103: 0
B104: RFS | C104: =VLOOKUP(B104,#REF!,4,FALSE) ->  | D104: =VLOOKUP(B104,'FY 23-24'!$E$16:$S$137,15,FALSE) -> 0.02950348095 | E104: =VLOOKUP(B104,'FY 24-25'!$E$16:$S$135,15,FALSE) -> 0.05570666327 | F104: 0.02620318232 | G104: 0.02955039884 | H104: 0.0556712963 | I104: 0.02612089746 | K104: 105 | M104: 28 | N104: 0
B105: RNQ | C105: =VLOOKUP(B105,#REF!,4,FALSE) ->  | D105: =VLOOKUP(B105,'FY 23-24'!$E$16:$S$137,15,FALSE) -> 0.108939264 | E105: =VLOOKUP(B105,'FY 24-25'!$E$16:$S$135,15,FALSE) -> 0.1376368548 | F105: 0.02869759088 | G105: 0.1114366684 | H105: 0.1273320505 | I105: 0.0158953821 | K105: 89 | M105: 80 | N105: 0
B106: RDU | C106: =VLOOKUP(B106,#REF!,4,FALSE) ->  | D106: =VLOOKUP(B106,'FY 23-24'!$E$16:$S$137,15,FALSE) -> 0.07542235076 | E106: =VLOOKUP(B106,'FY 24-25'!$E$16:$S$135,15,FALSE) -> 0.1045499643 | F106: 0.02912761349 | G106: 0.0779750381 | H106: 0.1046418407 | I106: 0.0266668026 | K106: 106 | M106: 61 | N106: 0
B107: RCD | C107: =VLOOKUP(B107,#REF!,4,FALSE) ->  | D107: =VLOOKUP(B107,'FY 23-24'!$E$16:$S$137,15,FALSE) -> 0.02591016682 | E107: =VLOOKUP(B107,'FY 24-25'!$E$16:$S$135,15,FALSE) -> 0.05516524422 | F107: 0.0292550774 | G107: 0.03052287003 | H107: 0.05510014367 | I107: 0.02457727363 | K107: 103 | M107: 27 | N107: 0
B108: RXK | C108: =VLOOKUP(B108,#REF!,4,FALSE) ->  | D108: =VLOOKUP(B108,'FY 23-24'!$E$16:$S$137,15,FALSE) -> 0.08065334381 | E108: =VLOOKUP(B108,'FY 24-25'!$E$16:$S$135,15,FALSE) -> 0.1106799229 | F108: 0.03002657906 | G108: 0.0806495735 | H108: 0.1130120274 | I108: 0.03236245394 | K108: 110 | M108: 65 | N108: 0
B109: RDE | C109: =VLOOKUP(B109,#REF!,4,FALSE) ->  | D109: =VLOOKUP(B109,'FY 23-24'!$E$16:$S$137,15,FALSE) -> 0.08666760507 | E109: =VLOOKUP(B109,'FY 24-25'!$E$16:$S$135,15,FALSE) -> 0.1171903047 | F109: 0.03052269961 | G109: 0.08628709374 | H109: 0.1179827899 | I109: 0.03169569617 | K109: 109 | M109: 71 | N109: 0
B110: RTG | C110: =VLOOKUP(B110,#REF!,4,FALSE) ->  | D110: =VLOOKUP(B110,'FY 23-24'!$E$16:$S$137,15,FALSE) -> 0.09940179194 | E110: =VLOOKUP(B110,'FY 24-25'!$E$16:$S$135,15,FALSE) -> 0.13043015 | F110: 0.03102835802 | G110: 0.1022328843 | H110: 0.1313807698 | I110: 0.02914788547 | K110: 108 | M110: 86 | N110: 0
B111: RXF | C111: =VLOOKUP(B111,#REF!,4,FALSE) ->  | D111: =VLOOKUP(B111,'FY 23-24'!$E$16:$S$137,15,FALSE) -> 0.0893236283 | E111: =VLOOKUP(B111,'FY 24-25'!$E$16:$S$135,15,FALSE) -> 0.1239806713 | F111: 0.03465704296 | G111: 0.0893490533 | H111: 0.1239554669 | I111: 0.03460641361 | K111: 112 | M111: 77 | N111: 0
B112: R1H | C112: =VLOOKUP(B112,#REF!,4,FALSE) ->  | D112: =VLOOKUP(B112,'FY 23-24'!$E$16:$S$137,15,FALSE) -> 0.129945308 | E112: =VLOOKUP(B112,'FY 24-25'!$E$16:$S$135,15,FALSE) -> 0.164642316 | F112: 0.03469700795 | G112: 0.1300077406 | H112: 0.1646002493 | I112: 0.03459250871 | K112: 111 | M112: 105 | N112: 0
B113: RVJ | C113: =VLOOKUP(B113,#REF!,4,FALSE) ->  | D113: =VLOOKUP(B113,'FY 23-24'!$E$16:$S$137,15,FALSE) -> 0.0496277205 | E113: =VLOOKUP(B113,'FY 24-25'!$E$16:$S$135,15,FALSE) -> 0.08705842327 | F113: 0.03743070277 | G113: 0.04974934352 | H113: 0.08704281259 | I113: 0.03729346907 | K113: 113 | M113: 49 | N113: 0
B114: RMP | C114: =VLOOKUP(B114,#REF!,4,FALSE) ->  | D114: =VLOOKUP(B114,'FY 23-24'!$E$16:$S$137,15,FALSE) -> 0.06349929665 | E114: =VLOOKUP(B114,'FY 24-25'!$E$16:$S$135,15,FALSE) -> 0.1010204755 | F114: 0.03752117881 | G114: 0.06344410876 | H114: 0.1010648323 | I114: 0.0376207235 | K114: 114 | M114: 56 | N114: 0
B115: RXP | C115: =VLOOKUP(B115,#REF!,4,FALSE) ->  | D115: =VLOOKUP(B115,'FY 23-24'!$E$16:$S$137,15,FALSE) -> 0.09728348122 | E115: =VLOOKUP(B115,'FY 24-25'!$E$16:$S$135,15,FALSE) -> 0.1348196328 | F115: 0.03753615157 | G115: 0.1150242802 | H115: 0.1347918137 | I115: 0.01976753351 | K115: 95 | M115: 90 | N115: 0
B116: RTP | C116: =VLOOKUP(B116,#REF!,4,FALSE) ->  | D116: =VLOOKUP(B116,'FY 23-24'!$E$16:$S$137,15,FALSE) -> 0.08164880288 | E116: =VLOOKUP(B116,'FY 24-25'!$E$16:$S$135,15,FALSE) -> 0.1191869319 | F116: 0.03753812904 | G116: 0.09887258833 | H116: 0.1190428474 | I116: 0.02017025908 | K116: 96 | M116: 73 | N116: 0
B117: RXC | C117: =VLOOKUP(B117,#REF!,4,FALSE) ->  | D117: =VLOOKUP(B117,'FY 23-24'!$E$16:$S$137,15,FALSE) -> 0.05611811535 | E117: =VLOOKUP(B117,'FY 24-25'!$E$16:$S$135,15,FALSE) -> 0.09759017627 | F117: 0.04147206092 | G117: 0.05617088608 | H117: 0.09759747614 | I117: 0.04142659006 | K117: 116 | M117: 53 | N117: 0
B118: RBT | C118: =VLOOKUP(B118,#REF!,4,FALSE) ->  | D118: =VLOOKUP(B118,'FY 23-24'!$E$16:$S$137,15,FALSE) -> 0.1151835237 | E118: =VLOOKUP(B118,'FY 24-25'!$E$16:$S$135,15,FALSE) -> 0.1584136836 | F118: 0.04323015989 | G118: 0.1150857021 | H118: 0.1583891224 | I118: 0.04330342031 | K118: 117 | M118: 104 | N118: 0
B119: RBL | C119: =VLOOKUP(B119,#REF!,4,FALSE) ->  | D119: =VLOOKUP(B119,'FY 23-24'!$E$16:$S$137,15,FALSE) -> 0.1651351435 | E119: =VLOOKUP(B119,'FY 24-25'!$E$16:$S$135,15,FALSE) -> 0.2122157312 | F119: 0.04708058768 | G119: 0.165000259 | H119: 0.2129437563 | I119: 0.04794349727 | K119: 118 | M119: 118 | N119: 0
B120: RKB | C120: =VLOOKUP(B120,#REF!,4,FALSE) ->  | D120: =VLOOKUP(B120,'FY 23-24'!$E$16:$S$137,15,FALSE) -> 0.09841798818 | E120: =VLOOKUP(B120,'FY 24-25'!$E$16:$S$135,15,FALSE) -> 0.1489270578 | F120: 0.05050906965 | G120: 0.09856165252 | H120: 0.1489259685 | I120: 0.05036431603 | K120: 119 | M120: 98 | N120: 0
B121: RJR | C121: =VLOOKUP(B121,#REF!,4,FALSE) ->  | D121: =VLOOKUP(B121,'FY 23-24'!$E$16:$S$137,15,FALSE) -> 0.199853988 | E121: =VLOOKUP(B121,'FY 24-25'!$E$16:$S$135,15,FALSE) -> 0.2582446633 | F121: 0.05839067532 | G121: 0.1908729407 | H121: 0.257771164 | I121: 0.06689822329 | K121: 121 | M121: 120 | N121: 0
B122: RJL | C122: =VLOOKUP(B122,#REF!,4,FALSE) ->  | D122: =VLOOKUP(B122,'FY 23-24'!$E$16:$S$137,15,FALSE) -> 0.1059970024 | E122: =VLOOKUP(B122,'FY 24-25'!$E$16:$S$135,15,FALSE) -> 0.1714557941 | F122: 0.06545879176 | G122: 0.1059553207 | H122: 0.1713989246 | I122: 0.06544360389 | K122: 120 | M122: 108 | N122: 0
B123: RXW | C123: =VLOOKUP(B123,#REF!,4,FALSE) ->  | D123: =VLOOKUP(B123,'FY 23-24'!$E$16:$S$137,15,FALSE) -> 0.219966738 | E123: =VLOOKUP(B123,'FY 24-25'!$E$16:$S$135,15,FALSE) -> ** | G123: 0.2199578076 | H123: 0.2270137071 | I123: 0.007055899482 | K123: 61 | M123: 119 | N123: 0

Sheet Sheet2 (hidden)
F6: RCU | G6: Sheffield Children's NHS Foundation Trust | H6: Birmingham Women's and Children's NHS Foundation Trust
F7: RQ3 | G7: Birmingham Women's and Children's NHS Foundation Trust | H7: University Hospital Southampton NHS Foundation Trust
F8: RHM | G8: University Hospital Southampton NHS Foundation Trust | H8: Royal Surrey County Hospital NHS Foundation Trust
F9: RA2 | G9: Royal Surrey County Hospital NHS Foundation Trust | H9: Royal Devon University Healthcare NHS Foundation Trust
F10: RH8 | G10: Royal Devon University Healthcare NHS Foundation Trust | H10: Doncaster and Bassetlaw Teaching Hospitals NHS Foundation Trust
F11: RP5 | G11: Doncaster and Bassetlaw Teaching Hospitals NHS Foundation Trust | H11: Oxford University Hospitals NHS Foundation Trust
F12: RTH | G12: Oxford University Hospitals NHS Foundation Trust | H12: Norfolk and Norwich University Hospitals NHS Foundation Trust
F13: RM1 | G13: Norfolk and Norwich University Hospitals NHS Foundation Trust | H13: The Rotherham NHS Foundation Trust
F14: RFR | G14: The Rotherham NHS Foundation Trust | H14: Bradford Teaching Hospitals NHS Foundation Trust
F15: R0D | G15: University Hospitals Dorset NHS Foundation Trust | H15: University Hospitals Dorset NHS Foundation Trust
